Workbook

Sheet 0. Overview
C1: Financial Forecast Workbook
C5: This workbook is designed to help you develop a financial forecast
C6: for a new product
C8: Unlike most standard financial modelling tools, this workbook does not allow you to enter financial information
C9: directly. Rather, it requires you to enter the underlying operational parameters like number of customers
C10: secured each year, unit prices, service fees and installation charges and it then calculates the resulting financial values.
C14: Version 1.2
C15: 2017-01-26
C18: Disclaimer:
C19: The user takes full responsibility for the use of this workbook.
C20: There is no implied or explicit guarantee that this workbook generates
C21: results to accurately reflect the viability of the proposed project.
A25: O. | B25: Overview - Using the Workbook to Produce a Financial Forecast
B27: This workbook consists of four stages to develop a financial forecast for a new system/service.
B28: Each stage is shown below and is provided in a separate worksheet in this workbook.
B30: Colour legend
C31: Cells to be filled in
C32: Blank cells will be calculated based on inputs of worksheet I-Input Data
C33: Cells out of scope of your project will automatically turn grey
B35: Stage I -- Input Data
B36: Fill in all the requested fields
B38: Stage II -- Estimate Annual Revenue/Turnover
B39: Go to worksheet II-Revenues and check if assumptions are consistent with the model
B41: Stage III -- Estimate Annual Costs
B42: Go to worksheet III-Costs andand check if assumptions are consistent with the model
B44: Stage IV -- Review Resulting Profit & Loss and Cash Flow
B45: Go to worksheet IV-Profit&Loss + Cash Flow to review the forecast.
B47: Note that the worksheet IV. Profit&Loss + Cash Flow uses figures automatically calculated in the Depreciation worksheet.
B48: If the resulting forecast does not seem reasonable, then you should adjust either your assumptions about
B49: revenues, your assumptions about costs or both.
B82: The FinForecastTool OPT ARTES is licensed under the ESA Software Community License – Type 3 - v1.1

Sheet I.Input Data
A1: I. | B1: Input Data | C1: The following tables corresponds to the different tables displayed in the Outline Proposal Template of ARTES C&G
A3: 1.1 | B3: Table 1.1 Planning and Costing Summary
B4: Max 20 years span (-10 to +10 years wrt commercial launch)
A5: Planning and Costing Summary | B5: Phase | C5: Included in proposed activity? | D5: Cost kEUR | E5: ESA Funding | F5: Start | G5: Conclusion | H5: year beginning | I5: Duration | J5: year end | K5: Days in start year | L5: Duration days | M5: Days in end year
E6: % of Costs | F6: Mon-YY | G6: Mon-YY | I6: years
B7: Definition | C7: YES | D7: 500 | E7: 1 | F7: 2016-01-01 | G7: 2016-06-01 | H7: =YEAR(F7)-YEAR($F$11) -> -2 | I7: =+(G7-F7)/365 -> 0.4164383562 | J7: =YEAR(G7)-YEAR($F$11) -> -2 | K7: =DATE(YEAR(F7),12,31)-F7 -> 365 | L7: =G7-F7 -> 152 | M7: =G7-DATE(YEAR(G7)-1,12,31) -> 153
B8: Technology | C8: YES | D8: 1000 | E8: 0.75 | F8: 2016-07-01 | G8: 2017-02-01 | H8: =YEAR(F8)-YEAR($F$11) -> -2 | I8: 0.5890410959 | J8: =YEAR(G8)-YEAR($F$11) -> -1 | K8: =DATE(YEAR(F8),12,31)-F8 -> 183 | L8: =G8-F8 -> 215 | M8: 32
B9: Product | C9: YES | D9: 800 | E9: 0.5 | F9: 2017-03-01 | G9: 2017-12-01 | H9: =YEAR(F9)-YEAR($F$11) -> -1 | I9: 0.7534246575 | J9: =YEAR(G9)-YEAR($F$11) -> -1 | K9: 305 | L9: 275 | M9: 335
B10: Demonstration | C10: NO | D10: 0 | E10: 0.5 | F10: 2018-01-01 | G10: 2018-12-01 | H10: =YEAR(F10)-YEAR($F$11) -> 0 | I10: 0.9150684932 | J10: =YEAR(G10)-YEAR($F$11) -> 0 | K10: 364 | L10: =G10-F10 -> 334 | M10: =G10-DATE(YEAR(G10)-1,12,31) -> 335
B11: Commercial | C11: - | D11: - | E11: - | F11: 2018-01-01 | G11: 2028-12-01 | H11: 0 | I11: =+(G11-F11)/365 -> 10.92328767 | J11: =YEAR(G11)-YEAR($F$11) -> 10 | K11: 364 | L11: 3987 | M11: =G11-DATE(YEAR(G11)-1,12,31) -> 336
A13: 2.5 | B13: Revenue Streams
B14: In the commercial exploitation stage , our product will be sold to our customer segments as described in the table below.
B15: [Note: The table provides 3 different ways of generating revenues from up to 3 different Customer Segments: by selling the product per unit, and/or by charging the installation of each product, and/or by a yearly service fee per product. Figures can be adjusted; if a specific entry is not applicable, put it to 0]
B16: The 'Installation charge per unit ' should be used in case a service is offered afterwards with a recurring service fee each year. In case of installation charges when selling a product, without any revenue streams afterwards, these installation charges should be included to the 'Product unit price'.
B17: Figures can be adjusted; if a specific entry is not applicable, put it to 0
B18: Table 2.3 Product Pricing
B19: Customer Segments | C19: Product unit price | D19: Product installation charge per unit | E19: Service fee per product per year
A21: Revenue Stream | B21: Customer Segment 1 (CS1) | C21: 120 | D21: 150 | E21: 2000
B22: Customer Segment 2 (CS2) | C22: 10 | D22: 20 | E22: 20
B23: Customer Segment 3 (CS3) | C23: 20 | D23: 20 | E23: 20
B24: Churn Rate | D24: 0.1
A26: 2.9 | B26: Cost Structures
B27: The key elements of cost for realising the value proposition are presented in the following tables.
C29: Development Phase(s) | M29: =+F11 -> 2018-01-01 | N29: Commercial Exploitation Phase
B30: Year -> | C30: -10 | D30: -9 | E30: -8 | F30: -7 | G30: -6 | H30: -5 | I30: -4 | J30: -3 | K30: -2 | L30: -1 | M30: 0 | N30: 1 | O30: 2 | P30: 3 | Q30: 4 | R30: 5 | S30: 6 | T30: 7 | U30: 8 | V30: 9 | W30: 10
A31: =+SUM(C31:L31) -> 500 | B31: Definition | C31: =IF(OR(C$30<$H$7,C$30>$J$7),0,IF(C$30=$H$7,(IF($H$7=$J$7,$D$7,$D$7*$K$7/$L$7)),IF(C$30=$J$7,($D$7*$M$7/$L$7),($D$7*365.25/$L$7)))) -> 0 | D31: 0 | E31: 0 | F31: 0 | G31: 0 | H31: 0 | I31: 0 | J31: 0 | K31: 500 | L31: 0 | M31: 0 | N31: 0 | O31: 0 | P31: 0 | Q31: 0 | R31: 0 | S31: 0 | T31: =IF(OR(T$30<$H$7,T$30>$J$7),0,IF(T$30=$H$7,($D$7*$K$7/$L$7),IF(T$30=$J$7,($D$7*$M$7/$L$7),($D$7*365.25/$L$7)))) -> 0 | U31: 0 | V31: 0 | W31: 0
A32: =+SUM(C32:L32) -> 1000 | B32: Technology | C32: =IF(OR(C$30<$H$8,C$30>$J$8),0,IF(C$30=$H$8,(IF($H$8=$J$8,$D$8,$D$8*$K$8/$L$8)),IF(C$30=$J$8,($D$8*$M$8/$L$8),($D$8*365.25/$L$8)))) -> 0 | D32: 0 | E32: 0 | F32: 0 | G32: 0 | H32: 0 | I32: 0 | J32: =IF(OR(J$30<$H$8,J$30>$J$8),0,IF(J$30=$H$8,(IF($H$8=$J$8,$D$8,$D$8*$K$8/$L$8)),IF(J$30=$J$8,($D$8*$M$8/$L$8),($D$8*365.25/$L$8)))) -> 0 | K32: =IF(OR(K$30<$H$8,K$30>$J$8),0,IF(K$30=$H$8,(IF($H$8=$J$8,$D$8,$D$8*$K$8/$L$8)),IF(K$30=$J$8,($D$8*$M$8/$L$8),($D$8*365.25/$L$8)))) -> 851.1627907 | L32: 148.8372093 | M32: 0 | N32: 0 | O32: 0 | P32: 0 | Q32: 0 | R32: 0 | S32: 0 | T32: =IF(OR(T$30<$H$8,T$30>$J$8),0,IF(T$30=$H$8,($D$8*$K$8/$L$8),IF(T$30=$J$8,($D$8*$M$8/$L$8),($D$8*365.25/$L$8)))) -> 0 | U32: 0 | V32: 0 | W32: 0
A33: 800 | B33: Product | C33: =IF(OR(C$30<$H$9,C$30>$J$9),0,IF(C$30=$H$9,(IF($H$9=$J$9,$D$9,$D$9*$K$9/$L$9)),IF(C$30=$J$9,($D$9*$M$9/$L$9),($D$9*365.25/$L$9)))) -> 0 | D33: 0 | E33: 0 | F33: 0 | G33: 0 | H33: 0 | I33: 0 | J33: 0 | K33: 0 | L33: 800 | M33: 0 | N33: 0 | O33: 0 | P33: 0 | Q33: 0 | R33: 0 | S33: 0 | T33: =IF(OR(T$30<$H$9,T$30>$J$9),0,IF(T$30=$H$9,($D$9*$K$9/$L$9),IF(T$30=$J$9,($D$9*$M$9/$L$9),($D$9*365.25/$L$9)))) -> 0 | U33: 0 | V33: 0 | W33: 0
A34: 0 | B34: Demonstration | C34: =IF(OR(C$30<$H$10,C$30>$J$10),0,IF(C$30=$H$10,(IF($H$10=$J$10,$D$10,$D$10*$K$10/$L$10)),IF(C$30=$J$10,($D$10*$M$10/$L$10),($D$10*365.25/$L$10)))) -> 0 | D34: 0 | E34: 0 | F34: 0 | G34: 0 | H34: 0 | I34: 0 | J34: 0 | K34: 0 | L34: 0 | M34: 0 | N34: 0 | O34: 0 | P34: 0 | Q34: 0 | R34: 0 | S34: 0 | T34: =IF(OR(T$30<$H$10,T$30>$J$10),0,IF(T$30=$H$10,($D$10*$K$10/$L$10),IF(T$30=$J$10,($D$10*$M$10/$L$10),($D$10*365.25/$L$10)))) -> 0 | U34: 0 | V34: 0 | W34: 0
B35: Year corrected -> | C35: =+IF(SUM(C31:C34)=0,-1,0) -> -1 | D35: =+IF(SUM(D31:D34)=0,-1,C35+1) -> -1 | E35: =+IF(SUM(E31:E34)=0,-1,D35+1) -> -1 | F35: -1 | G35: -1 | H35: -1 | I35: -1 | J35: -1 | K35: 0 | L35: 1 | M35: =+L35+1 -> 2 | N35: =+M35+1 -> 3 | O35: 4 | P35: 5 | Q35: 6 | R35: 7 | S35: =+R35+1 -> 8 | T35: =+S35+1 -> 9 | U35: =+T35+1 -> 10 | V35: =+U35+1 -> 11 | W35: =+V35+1 -> 12
K37: Table 2.7 Cost of Sales
K38: [Note: In case you do not have detailed cost of sales figure, provide the estimate of the cost of sale per product in the top row.
K39: In case you have detailed cost of sales, fill in the remaining rows and set zero in the top row]
J40: Costs of Sale | K40: Estimated Cost of Sales | M40: =+F11 -> 2018-01-01 | N40: Commercial Exploitation Phase
M41: 0 | N41: 1 | O41: 2 | P41: 3 | Q41: 4 | R41: 5 | S41: 6 | T41: 7 | U41: 8 | V41: 9 | W41: 10
K42: Simplified CoS for product unit | M42: 100
K43: Cost Element N.1 | M43: 0 | N43: 0 | O43: 0 | P43: 0 | Q43: 0 | R43: 0 | S43: 0 | T43: 0 | U43: 0 | V43: 0 | W43: 0
K44: Cost Element N.2 | M44: 0 | N44: 0 | O44: 0 | P44: 0 | Q44: 0 | R44: 0 | S44: 0 | T44: 0 | U44: 0 | V44: 0 | W44: 0
K45: Cost Element N.3 | M45: 0 | N45: 0 | O45: 0 | P45: 0 | Q45: 0 | R45: 0 | S45: 0 | T45: 0 | U45: 0 | V45: 0 | W45: 0
K46: Cost Element N.4 | M46: 0 | N46: 0 | O46: 0 | P46: 0 | Q46: 0 | R46: 0 | S46: 0 | T46: 0 | U46: 0 | V46: 0 | W46: 0
K48: Table 2.8 Operational Expenditures
J49: OPEX | K49: Estimated OPEX | M49: =+F11 -> 2018-01-01 | N49: Commercial Exploitation Phase
M50: 0 | N50: 1 | O50: 2 | P50: 3 | Q50: 4 | R50: 5 | S50: 6 | T50: 7 | U50: 8 | V50: 9 | W50: 10
K51: Sales staff cost | M51: 40000 | N51: 40000 | O51: 40000 | P51: 50000 | Q51: 50000 | R51: 50000 | S51: 50000 | T51: 50000 | U51: 50000 | V51: 50000 | W51: 50000
K52: Uplift | L52: 0.03 | M52: =+M51*$L$52 -> 1200 | N52: =+N51*$L$52 -> 1200 | O52: 1200 | P52: 1500 | Q52: 1500 | R52: 1500 | S52: 1500 | T52: 1500 | U52: 1500 | V52: 1500 | W52: 1500
K53: Sales staff | M53: 1.2 | N53: 1.2 | O53: 1.5 | P53: 1.5 | Q53: 2 | R53: 2 | S53: 2 | T53: 2 | U53: 2 | V53: 2 | W53: 2
K54: Marketing staff cost | M54: 30000 | N54: 30000 | O54: 30000 | P54: 30000 | Q54: 30000 | R54: 30000 | S54: 30000 | T54: 30000 | U54: 30000 | V54: 30000 | W54: 30000
K55: Uplift | L55: 0.25 | M55: =+M54*$L$55 -> 7500 | N55: =+N54*$L$55 -> 7500 | O55: 7500 | P55: 7500 | Q55: 7500 | R55: 7500 | S55: 7500 | T55: 7500 | U55: 7500 | V55: 7500 | W55: 7500
K56: Marketing staff | M56: 1 | N56: 1 | O56: 1.5 | P56: 1.5 | Q56: 2 | R56: 2 | S56: 2 | T56: 2 | U56: 2 | V56: 2 | W56: 2
K57: Admin staff cost | M57: 25000 | N57: 25000 | O57: 25000 | P57: 40000 | Q57: 40000 | R57: 40000 | S57: 40000 | T57: 40000 | U57: 40000 | V57: 40000 | W57: 40000
K58: Uplift | L58: 0.03 | M58: =+M57*$L$58 -> 750 | N58: =+N57*$L$58 -> 750 | O58: 750 | P58: 1200 | Q58: 1200 | R58: 1200 | S58: 1200 | T58: 1200 | U58: 1200 | V58: 1200 | W58: 1200
K59: Admin staff | M59: 0.5 | N59: 0.5 | O59: 0.8 | P59: 1 | Q59: 1 | R59: 1 | S59: 1 | T59: 1 | U59: 1 | V59: 1 | W59: 1
K60: Other Facilities Cost N.1 | M60: 0 | N60: 0 | O60: 0 | P60: 0 | Q60: 0 | R60: 0 | S60: 0 | T60: 0 | U60: 0 | V60: 0 | W60: 0
K61: Other Facilities Cost N.2 | M61: 0 | N61: 0 | O61: 0 | P61: 0 | Q61: 0 | R61: 0 | S61: 0 | T61: 0 | U61: 0 | V61: 0 | W61: 0
K62: Other Facilities Cost N.3 | M62: 0 | N62: 0 | O62: 0 | P62: 0 | Q62: 0 | R62: 0 | S62: 0 | T62: 0 | U62: 0 | V62: 0 | W62: 0
K63: Sat Capacity - Units | M63: 1 | N63: 1.4 | O63: 1.8 | P63: 2 | Q63: 2 | R63: 2 | S63: 2 | T63: 2 | U63: 2 | V63: 2 | W63: 2
K64: Sat Capacity - Costs per unit | M64: 42000
K66: Table 2.9 Capital Expenditures
J67: CAPEX | K67: Estimated CAPEX | M67: =+$F$11 -> 2018-01-01 | N67: Commercial Exploitation Phase
M68: 0 | N68: 1 | O68: 2 | P68: 3 | Q68: 4 | R68: 5 | S68: 6 | T68: 7 | U68: 8 | V68: 9 | W68: 10
K69: Investment N.1 | M69: 100000 | N69: 0 | O69: 0 | P69: 0 | Q69: 0 | R69: 0 | S69: 0 | T69: 0 | U69: 0 | V69: 0 | W69: 0
K70: Investment N.2 | M70: 0 | N70: 20000 | O70: 0 | P70: 0 | Q70: 0 | R70: 0 | S70: 0 | T70: 0 | U70: 50000 | V70: 0 | W70: 0
K71: Lifetime Inv. Above (years) | M71: 5
K72: Investment N.3 | M72: 5000 | N72: 0 | O72: 0 | P72: 0 | Q72: 0 | R72: 0 | S72: 0 | T72: 0 | U72: 0 | V72: 0 | W72: 0
K73: Investment N.4 | M73: 0 | N73: 0 | O73: 0 | P73: 0 | Q73: 0 | R73: 0 | S73: 0 | T73: 0 | U73: 0 | V73: 0 | W73: 0
K74: Lifetime Inv. Above (years) | M74: 7
A76: 2.11 | B76: Market Analysis
B77: Our projections in term of the served obtainable market (SOM, being the percentage of the SAM that we aim to capture in the short terms for each segment identified), is shown in the following table.
K78: Table 2.12 Served Obtainable Market
J79: Sales Volume | K79: Number of product units sold per year | M79: =+$F$11 -> 2018-01-01 | N79: Commercial Exploitation Phase
M80: 0 | N80: 1 | O80: 2 | P80: 3 | Q80: 4 | R80: 5 | S80: 6 | T80: 7 | U80: 8 | V80: 9 | W80: 10
K81: =+B21 -> Customer Segment 1 (CS1) | M81: 10 | N81: 100 | O81: 200 | P81: 220 | Q81: 200 | R81: 500 | S81: 600 | T81: 650 | U81: 800 | V81: 450 | W81: 450
K82: =+B22 -> Customer Segment 2 (CS2) | M82: 0 | N82: 0 | O82: 5 | P82: 0 | Q82: 4 | R82: 4 | S82: 4 | T82: 4 | U82: 4 | V82: 4 | W82: 4
K83: Customer Segment 3 (CS3) | M83: 0 | N83: 0 | O83: 0 | P83: 2 | Q83: 0 | R83: 0 | S83: 0 | T83: 0 | U83: 0 | V83: 0 | W83: 0
A85: 2.12 | B85: Financial Indicators
B87: Cost of Capital (WACC) | C87: 0.1

Sheet II. Revenues
B2: Result -- Annual Revenues
B4: Customer Segments | C4: Product unit price | D4: Product installation charge per unit | E4: Service fee per product per year
B6: =+'I.Input Data'!B21 -> Customer Segment 1 (CS1) | C6: =+'I.Input Data'!C21 -> 120 | D6: =+'I.Input Data'!D21 -> 150 | E6: =+'I.Input Data'!E21 -> 2000
B7: =+'I.Input Data'!B22 -> Customer Segment 2 (CS2) | C7: =+'I.Input Data'!C22 -> 10 | D7: =+'I.Input Data'!D22 -> 20 | E7: =+'I.Input Data'!E22 -> 20
B8: =+'I.Input Data'!B23 -> Customer Segment 3 (CS3) | C8: =+'I.Input Data'!C23 -> 20 | D8: =+'I.Input Data'!D23 -> 20 | E8: =+'I.Input Data'!E23 -> 20
B11: Estimated Cost of Sales | D11: =+'I.Input Data'!F11 -> 2018-01-01 | E11: Commercial Exploitation Phase
D12: 0 | E12: 1 | F12: 2 | G12: 3 | H12: 4 | I12: 5 | J12: 6 | K12: 7 | L12: 8 | M12: 9 | N12: 10
B13: Cumulative Volume Sales | C13: =+$B$6 -> Customer Segment 1 (CS1) | D13: =+'I.Input Data'!M81 -> 10 | E13: =(D13*(1-'I.Input Data'!$D$24)+'I.Input Data'!N81) -> 109 | F13: =(E13*(1-'I.Input Data'!$D$24)+'I.Input Data'!O81) -> 298.1 | G13: =(F13*(1-'I.Input Data'!$D$24)+'I.Input Data'!P81) -> 488.29 | H13: =(G13*(1-'I.Input Data'!$D$24)+'I.Input Data'!Q81) -> 639.461 | I13: =(H13*(1-'I.Input Data'!$D$24)+'I.Input Data'!R81) -> 1075.5149 | J13: =(I13*(1-'I.Input Data'!$D$24)+'I.Input Data'!S81) -> 1567.96341 | K13: =(J13*(1-'I.Input Data'!$D$24)+'I.Input Data'!T81) -> 2061.167069 | L13: =(K13*(1-'I.Input Data'!$D$24)+'I.Input Data'!U81) -> 2655.050362 | M13: =(L13*(1-'I.Input Data'!$D$24)+'I.Input Data'!V81) -> 2839.545326 | N13: =(M13*(1-'I.Input Data'!$D$24)+'I.Input Data'!W81) -> 3005.590793
C14: =+$B$7 -> Customer Segment 2 (CS2) | D14: =+'I.Input Data'!M82 -> 0 | E14: =(D14*(1-'I.Input Data'!$D$24)+'I.Input Data'!N82) -> 0 | F14: =(E14*(1-'I.Input Data'!$D$24)+'I.Input Data'!O82) -> 5 | G14: =(F14*(1-'I.Input Data'!$D$24)+'I.Input Data'!P82) -> 4.5 | H14: =(G14*(1-'I.Input Data'!$D$24)+'I.Input Data'!Q82) -> 8.05 | I14: =(H14*(1-'I.Input Data'!$D$24)+'I.Input Data'!R82) -> 11.245 | J14: =(I14*(1-'I.Input Data'!$D$24)+'I.Input Data'!S82) -> 14.1205 | K14: =(J14*(1-'I.Input Data'!$D$24)+'I.Input Data'!T82) -> 16.70845 | L14: =(K14*(1-'I.Input Data'!$D$24)+'I.Input Data'!U82) -> 19.037605 | M14: =(L14*(1-'I.Input Data'!$D$24)+'I.Input Data'!V82) -> 21.1338445 | N14: =(M14*(1-'I.Input Data'!$D$24)+'I.Input Data'!W82) -> 23.02046005
C15: =+$B$8 -> Customer Segment 3 (CS3) | D15: =+'I.Input Data'!M83 -> 0 | E15: =(D15*(1-'I.Input Data'!$D$24)+'I.Input Data'!N83) -> 0 | F15: =(E15*(1-'I.Input Data'!$D$24)+'I.Input Data'!O83) -> 0 | G15: =(F15*(1-'I.Input Data'!$D$24)+'I.Input Data'!P83) -> 2 | H15: =(G15*(1-'I.Input Data'!$D$24)+'I.Input Data'!Q83) -> 1.8 | I15: =(H15*(1-'I.Input Data'!$D$24)+'I.Input Data'!R83) -> 1.62 | J15: =(I15*(1-'I.Input Data'!$D$24)+'I.Input Data'!S83) -> 1.458 | K15: =(J15*(1-'I.Input Data'!$D$24)+'I.Input Data'!T83) -> 1.3122 | L15: =(K15*(1-'I.Input Data'!$D$24)+'I.Input Data'!U83) -> 1.18098 | M15: =(L15*(1-'I.Input Data'!$D$24)+'I.Input Data'!V83) -> 1.062882 | N15: =(M15*(1-'I.Input Data'!$D$24)+'I.Input Data'!W83) -> 0.9565938
B16: Product Sales Revenue | C16: =+$B$6 -> Customer Segment 1 (CS1) | D16: ='I.Input Data'!M81*$C$6 -> 1200 | E16: ='I.Input Data'!N81*$C$6 -> 12000 | F16: ='I.Input Data'!O81*$C$6 -> 24000 | G16: ='I.Input Data'!P81*$C$6 -> 26400 | H16: ='I.Input Data'!Q81*$C$6 -> 24000 | I16: ='I.Input Data'!R81*$C$6 -> 60000 | J16: ='I.Input Data'!S81*$C$6 -> 72000 | K16: ='I.Input Data'!T81*$C$6 -> 78000 | L16: ='I.Input Data'!U81*$C$6 -> 96000 | M16: ='I.Input Data'!V81*$C$6 -> 54000 | N16: ='I.Input Data'!W81*$C$6 -> 54000
C17: =+$B$7 -> Customer Segment 2 (CS2) | D17: ='I.Input Data'!M82*$C$7 -> 0 | E17: ='I.Input Data'!N82*$C$7 -> 0 | F17: ='I.Input Data'!O82*$C$7 -> 50 | G17: ='I.Input Data'!P82*$C$7 -> 0 | H17: ='I.Input Data'!Q82*$C$7 -> 40 | I17: ='I.Input Data'!R82*$C$7 -> 40 | J17: ='I.Input Data'!S82*$C$7 -> 40 | K17: ='I.Input Data'!T82*$C$7 -> 40 | L17: ='I.Input Data'!U82*$C$7 -> 40 | M17: ='I.Input Data'!V82*$C$7 -> 40 | N17: ='I.Input Data'!W82*$C$7 -> 40
C18: =+$B$8 -> Customer Segment 3 (CS3) | D18: ='I.Input Data'!M83*$C$8 -> 0 | E18: ='I.Input Data'!N83*$C$8 -> 0 | F18: ='I.Input Data'!O83*$C$8 -> 0 | G18: ='I.Input Data'!P83*$C$8 -> 40 | H18: ='I.Input Data'!Q83*$C$8 -> 0 | I18: ='I.Input Data'!R83*$C$8 -> 0 | J18: ='I.Input Data'!S83*$C$8 -> 0 | K18: ='I.Input Data'!T83*$C$8 -> 0 | L18: ='I.Input Data'!U83*$C$8 -> 0 | M18: ='I.Input Data'!V83*$C$8 -> 0 | N18: ='I.Input Data'!W83*$C$8 -> 0
C19: Total | D19: =+SUM(D16:D18) -> 1200 | E19: =+SUM(E16:E18) -> 12000 | F19: 24050 | G19: 26440 | H19: 24040 | I19: =+SUM(I16:I18) -> 60040 | J19: 72040 | K19: 78040 | L19: 96040 | M19: 54040 | N19: 54040
B20: Product Installation Revenue | C20: =+$B$6 -> Customer Segment 1 (CS1) | D20: =+'I.Input Data'!M81*$D$6 -> 1500 | E20: =+'I.Input Data'!N81*$D$6 -> 15000 | F20: =+'I.Input Data'!O81*$D$6 -> 30000 | G20: =+'I.Input Data'!P81*$D$6 -> 33000 | H20: =+'I.Input Data'!Q81*$D$6 -> 30000 | I20: =+'I.Input Data'!R81*$D$6 -> 75000 | J20: =+'I.Input Data'!S81*$D$6 -> 90000 | K20: =+'I.Input Data'!T81*$D$6 -> 97500 | L20: =+'I.Input Data'!U81*$D$6 -> 120000 | M20: =+'I.Input Data'!V81*$D$6 -> 67500 | N20: =+'I.Input Data'!W81*$D$6 -> 67500
C21: =+$B$7 -> Customer Segment 2 (CS2) | D21: =+'I.Input Data'!M82*$D$7 -> 0 | E21: =+'I.Input Data'!N82*$D$7 -> 0 | F21: =+'I.Input Data'!O82*$D$7 -> 100 | G21: =+'I.Input Data'!P82*$D$7 -> 0 | H21: =+'I.Input Data'!Q82*$D$7 -> 80 | I21: =+'I.Input Data'!R82*$D$7 -> 80 | J21: =+'I.Input Data'!S82*$D$7 -> 80 | K21: =+'I.Input Data'!T82*$D$7 -> 80 | L21: =+'I.Input Data'!U82*$D$7 -> 80 | M21: =+'I.Input Data'!V82*$D$7 -> 80 | N21: =+'I.Input Data'!W82*$D$7 -> 80
C22: =+$B$8 -> Customer Segment 3 (CS3) | D22: =+'I.Input Data'!M83*$D$8 -> 0 | E22: =+'I.Input Data'!N83*$D$8 -> 0 | F22: =+'I.Input Data'!O83*$D$8 -> 0 | G22: =+'I.Input Data'!P83*$D$8 -> 40 | H22: =+'I.Input Data'!Q83*$D$8 -> 0 | I22: =+'I.Input Data'!R83*$D$8 -> 0 | J22: =+'I.Input Data'!S83*$D$8 -> 0 | K22: =+'I.Input Data'!T83*$D$8 -> 0 | L22: =+'I.Input Data'!U83*$D$8 -> 0 | M22: =+'I.Input Data'!V83*$D$8 -> 0 | N22: =+'I.Input Data'!W83*$D$8 -> 0
C23: Total | D23: =+SUM(D20:D22) -> 1500 | E23: =+SUM(E20:E22) -> 15000 | F23: 30100 | G23: 33040 | H23: 30080 | I23: 75080 | J23: 90080 | K23: 97580 | L23: 120080 | M23: 67580 | N23: 67580
B24: Product Service Fee Revenue | C24: =+$B$6 -> Customer Segment 1 (CS1) | D24: =+D13*$E$6 -> 20000 | E24: =+E13*$E$6 -> 218000 | F24: =+F13*$E$6 -> 596200 | G24: =+G13*$E$6 -> 976580 | H24: 1278922 | I24: 2151029.8 | J24: 3135926.82 | K24: 4122334.138 | L24: 5310100.724 | M24: =+M13*$E$6 -> 5679090.652 | N24: 6011181.587
C25: =+$B$7 -> Customer Segment 2 (CS2) | D25: =+D14*$E$7 -> 0 | E25: =+E14*$E$7 -> 0 | F25: =+F14*$E$7 -> 100 | G25: =+G14*$E$7 -> 90 | H25: =+H14*$E$7 -> 161 | I25: =+I14*$E$7 -> 224.9 | J25: 282.41 | K25: 334.169 | L25: 380.7521 | M25: 422.67689 | N25: 460.409201
C26: =+$B$8 -> Customer Segment 3 (CS3) | D26: =+D15*$E$8 -> 0 | E26: =+E15*$E$8 -> 0 | F26: 0 | G26: 40 | H26: 36 | I26: 32.4 | J26: 29.16 | K26: 26.244 | L26: 23.6196 | M26: 21.25764 | N26: 19.131876
C27: Total | D27: =+SUM(D24:D26) -> 20000 | E27: =+SUM(E24:E26) -> 218000 | F27: 596300 | G27: 976710 | H27: 1279119 | I27: 2151287.1 | J27: 3136238.39 | K27: 4122694.551 | L27: 5310505.096 | M27: 5679534.586 | N27: 6011661.128
B28: Total Revenues | C28: =+$B$6 -> Customer Segment 1 (CS1) | D28: =+D16+D20+D24 -> 22700 | E28: 245000 | F28: 650200 | G28: 1035980 | H28: 1332922 | I28: =+I16+I20+I24 -> 2286029.8 | J28: 3297926.82 | K28: 4297834.138 | L28: 5526100.724 | M28: 5800590.652 | N28: 6132681.587
C29: =+$B$7 -> Customer Segment 2 (CS2) | D29: =+D17+D21+D25 -> 0 | E29: 0 | F29: 250 | G29: 90 | H29: 281 | I29: =+I17+I21+I25 -> 344.9 | J29: 402.41 | K29: 454.169 | L29: 500.7521 | M29: 542.67689 | N29: 580.409201
C30: =+$B$8 -> Customer Segment 3 (CS3) | D30: =+D18+D22+D26 -> 0 | E30: 0 | F30: 0 | G30: 120 | H30: 36 | I30: =+I18+I22+I26 -> 32.4 | J30: 29.16 | K30: 26.244 | L30: 23.6196 | M30: 21.25764 | N30: 19.131876
C31: TOTAL | D31: =+D19+D23+D27 -> 22700 | E31: =+E19+E23+E27 -> 245000 | F31: =+F19+F23+F27 -> 650450 | G31: 1036190 | H31: 1333239 | I31: =+I19+I23+I27 -> 2286407.1 | J31: 3298358.39 | K31: 4298314.551 | L31: 5526625.096 | M31: 5801154.586 | N31: 6133281.128

Sheet III. Costs
B2: Result -- Annual Expenses
D5: Development Phase(s) | N5: =+'I.Input Data'!F11 -> 2018-01-01 | O5: Commercial Exploitation Phase
D6: -10 | E6: -9 | F6: -8 | G6: -7 | H6: -6 | I6: -5 | J6: -4 | K6: -3 | L6: -2 | M6: -1 | N6: 0 | O6: 1 | P6: 2 | Q6: 3 | R6: 4 | S6: 5 | T6: 6 | U6: 7 | V6: 8 | W6: 9 | X6: 10
B7: Cost of Develoment Phases | C7: Definition | D7: =+'I.Input Data'!C31*1000 -> 0 | E7: =+'I.Input Data'!D31*1000 -> 0 | F7: =+'I.Input Data'!E31*1000 -> 0 | G7: =+'I.Input Data'!F31*1000 -> 0 | H7: =+'I.Input Data'!G31*1000 -> 0 | I7: =+'I.Input Data'!H31*1000 -> 0 | J7: =+'I.Input Data'!I31*1000 -> 0 | K7: =+'I.Input Data'!J31*1000 -> 0 | L7: =+'I.Input Data'!K31*1000 -> 500000 | M7: =+'I.Input Data'!L31*1000 -> 0 | N7: =+'I.Input Data'!M31*1000 -> 0 | O7: =+'I.Input Data'!N31*1000 -> 0 | P7: =+'I.Input Data'!O31*1000 -> 0 | Q7: =+'I.Input Data'!P31*1000 -> 0 | R7: =+'I.Input Data'!Q31*1000 -> 0 | S7: =+'I.Input Data'!R31*1000 -> 0 | T7: =+'I.Input Data'!S31*1000 -> 0 | U7: =+'I.Input Data'!T31*1000 -> 0 | V7: =+'I.Input Data'!U31*1000 -> 0 | W7: =+'I.Input Data'!V31*1000 -> 0 | X7: =+'I.Input Data'!W31*1000 -> 0
C8: Technology | D8: =+'I.Input Data'!C32*1000 -> 0 | E8: =+'I.Input Data'!D32*1000 -> 0 | F8: =+'I.Input Data'!E32*1000 -> 0 | G8: =+'I.Input Data'!F32*1000 -> 0 | H8: =+'I.Input Data'!G32*1000 -> 0 | I8: =+'I.Input Data'!H32*1000 -> 0 | J8: =+'I.Input Data'!I32*1000 -> 0 | K8: =+'I.Input Data'!J32*1000 -> 0 | L8: =+'I.Input Data'!K32*1000 -> 851162.7907 | M8: =+'I.Input Data'!L32*1000 -> 148837.2093 | N8: =+'I.Input Data'!M32*1000 -> 0 | O8: =+'I.Input Data'!N32*1000 -> 0 | P8: =+'I.Input Data'!O32*1000 -> 0 | Q8: =+'I.Input Data'!P32*1000 -> 0 | R8: =+'I.Input Data'!Q32*1000 -> 0 | S8: =+'I.Input Data'!R32*1000 -> 0 | T8: =+'I.Input Data'!S32*1000 -> 0 | U8: =+'I.Input Data'!T32*1000 -> 0 | V8: =+'I.Input Data'!U32*1000 -> 0 | W8: =+'I.Input Data'!V32*1000 -> 0 | X8: =+'I.Input Data'!W32*1000 -> 0
C9: Product | D9: =+'I.Input Data'!C33*1000 -> 0 | E9: =+'I.Input Data'!D33*1000 -> 0 | F9: =+'I.Input Data'!E33*1000 -> 0 | G9: =+'I.Input Data'!F33*1000 -> 0 | H9: =+'I.Input Data'!G33*1000 -> 0 | I9: =+'I.Input Data'!H33*1000 -> 0 | J9: =+'I.Input Data'!I33*1000 -> 0 | K9: =+'I.Input Data'!J33*1000 -> 0 | L9: =+'I.Input Data'!K33*1000 -> 0 | M9: =+'I.Input Data'!L33*1000 -> 800000 | N9: =+'I.Input Data'!M33*1000 -> 0 | O9: =+'I.Input Data'!N33*1000 -> 0 | P9: =+'I.Input Data'!O33*1000 -> 0 | Q9: =+'I.Input Data'!P33*1000 -> 0 | R9: =+'I.Input Data'!Q33*1000 -> 0 | S9: =+'I.Input Data'!R33*1000 -> 0 | T9: =+'I.Input Data'!S33*1000 -> 0 | U9: =+'I.Input Data'!T33*1000 -> 0 | V9: =+'I.Input Data'!U33*1000 -> 0 | W9: =+'I.Input Data'!V33*1000 -> 0 | X9: =+'I.Input Data'!W33*1000 -> 0
C10: Demonstration | D10: =+'I.Input Data'!C34*1000 -> 0 | E10: =+'I.Input Data'!D34*1000 -> 0 | F10: =+'I.Input Data'!E34*1000 -> 0 | G10: =+'I.Input Data'!F34*1000 -> 0 | H10: =+'I.Input Data'!G34*1000 -> 0 | I10: =+'I.Input Data'!H34*1000 -> 0 | J10: =+'I.Input Data'!I34*1000 -> 0 | K10: =+'I.Input Data'!J34*1000 -> 0 | L10: =+'I.Input Data'!K34*1000 -> 0 | M10: =+'I.Input Data'!L34*1000 -> 0 | N10: =+'I.Input Data'!M34*1000 -> 0 | O10: =+'I.Input Data'!N34*1000 -> 0 | P10: =+'I.Input Data'!O34*1000 -> 0 | Q10: =+'I.Input Data'!P34*1000 -> 0 | R10: =+'I.Input Data'!Q34*1000 -> 0 | S10: =+'I.Input Data'!R34*1000 -> 0 | T10: =+'I.Input Data'!S34*1000 -> 0 | U10: =+'I.Input Data'!T34*1000 -> 0 | V10: =+'I.Input Data'!U34*1000 -> 0 | W10: =+'I.Input Data'!V34*1000 -> 0 | X10: =+'I.Input Data'!W34*1000 -> 0
B11: ESA Financial support | C11: Definition | D11: =+D7*'I.Input Data'!$E7 -> 0 | E11: =+E7*'I.Input Data'!$E7 -> 0 | F11: =+F7*'I.Input Data'!$E7 -> 0 | G11: =+G7*'I.Input Data'!$E7 -> 0 | H11: =+H7*'I.Input Data'!$E7 -> 0 | I11: =+I7*'I.Input Data'!$E7 -> 0 | J11: =+J7*'I.Input Data'!$E7 -> 0 | K11: =+K7*'I.Input Data'!$E7 -> 0 | L11: =+L7*'I.Input Data'!$E7 -> 500000 | M11: =+M7*'I.Input Data'!$E7 -> 0 | N11: =+N7*'I.Input Data'!$E7 -> 0 | O11: =+O7*'I.Input Data'!$E7 -> 0 | P11: =+P7*'I.Input Data'!$E7 -> 0 | Q11: =+Q7*'I.Input Data'!$E7 -> 0 | R11: =+R7*'I.Input Data'!$E7 -> 0 | S11: =+S7*'I.Input Data'!$E7 -> 0 | T11: =+T7*'I.Input Data'!$E7 -> 0 | U11: =+U7*'I.Input Data'!$E7 -> 0 | V11: =+V7*'I.Input Data'!$E7 -> 0 | W11: =+W7*'I.Input Data'!$E7 -> 0 | X11: =+X7*'I.Input Data'!$E7 -> 0
C12: Technology | D12: =+D8*'I.Input Data'!$E8 -> 0 | E12: =+E8*'I.Input Data'!$E8 -> 0 | F12: =+F8*'I.Input Data'!$E8 -> 0 | G12: =+G8*'I.Input Data'!$E8 -> 0 | H12: =+H8*'I.Input Data'!$E8 -> 0 | I12: =+I8*'I.Input Data'!$E8 -> 0 | J12: =+J8*'I.Input Data'!$E8 -> 0 | K12: =+K8*'I.Input Data'!$E8 -> 0 | L12: =+L8*'I.Input Data'!$E8 -> 638372.093 | M12: =+M8*'I.Input Data'!$E8 -> 111627.907 | N12: =+N8*'I.Input Data'!$E8 -> 0 | O12: =+O8*'I.Input Data'!$E8 -> 0 | P12: =+P8*'I.Input Data'!$E8 -> 0 | Q12: =+Q8*'I.Input Data'!$E8 -> 0 | R12: =+R8*'I.Input Data'!$E8 -> 0 | S12: =+S8*'I.Input Data'!$E8 -> 0 | T12: =+T8*'I.Input Data'!$E8 -> 0 | U12: =+U8*'I.Input Data'!$E8 -> 0 | V12: =+V8*'I.Input Data'!$E8 -> 0 | W12: =+W8*'I.Input Data'!$E8 -> 0 | X12: =+X8*'I.Input Data'!$E8 -> 0
C13: Product | D13: =+D9*'I.Input Data'!$E9 -> 0 | E13: =+E9*'I.Input Data'!$E9 -> 0 | F13: =+F9*'I.Input Data'!$E9 -> 0 | G13: =+G9*'I.Input Data'!$E9 -> 0 | H13: =+H9*'I.Input Data'!$E9 -> 0 | I13: =+I9*'I.Input Data'!$E9 -> 0 | J13: =+J9*'I.Input Data'!$E9 -> 0 | K13: =+K9*'I.Input Data'!$E9 -> 0 | L13: =+L9*'I.Input Data'!$E9 -> 0 | M13: =+M9*'I.Input Data'!$E9 -> 400000 | N13: =+N9*'I.Input Data'!$E9 -> 0 | O13: =+O9*'I.Input Data'!$E9 -> 0 | P13: =+P9*'I.Input Data'!$E9 -> 0 | Q13: =+Q9*'I.Input Data'!$E9 -> 0 | R13: =+R9*'I.Input Data'!$E9 -> 0 | S13: =+S9*'I.Input Data'!$E9 -> 0 | T13: =+T9*'I.Input Data'!$E9 -> 0 | U13: =+U9*'I.Input Data'!$E9 -> 0 | V13: =+V9*'I.Input Data'!$E9 -> 0 | W13: =+W9*'I.Input Data'!$E9 -> 0 | X13: =+X9*'I.Input Data'!$E9 -> 0
C14: Demonstration | D14: =+D10*'I.Input Data'!$E10 -> 0 | E14: =+E10*'I.Input Data'!$E10 -> 0 | F14: =+F10*'I.Input Data'!$E10 -> 0 | G14: =+G10*'I.Input Data'!$E10 -> 0 | H14: =+H10*'I.Input Data'!$E10 -> 0 | I14: =+I10*'I.Input Data'!$E10 -> 0 | J14: =+J10*'I.Input Data'!$E10 -> 0 | K14: =+K10*'I.Input Data'!$E10 -> 0 | L14: =+L10*'I.Input Data'!$E10 -> 0 | M14: =+M10*'I.Input Data'!$E10 -> 0 | N14: =+N10*'I.Input Data'!$E10 -> 0 | O14: =+O10*'I.Input Data'!$E10 -> 0 | P14: =+P10*'I.Input Data'!$E10 -> 0 | Q14: =+Q10*'I.Input Data'!$E10 -> 0 | R14: =+R10*'I.Input Data'!$E10 -> 0 | S14: =+S10*'I.Input Data'!$E10 -> 0 | T14: =+T10*'I.Input Data'!$E10 -> 0 | U14: =+U10*'I.Input Data'!$E10 -> 0 | V14: =+V10*'I.Input Data'!$E10 -> 0 | W14: =+W10*'I.Input Data'!$E10 -> 0 | X14: =+X10*'I.Input Data'!$E10 -> 0
B15: Simplified Cost of Sales | N15: =+'I.Input Data'!$M$42*('I.Input Data'!M81+'I.Input Data'!M82+'I.Input Data'!M83) -> 1000 | O15: =+'I.Input Data'!$M$42*('I.Input Data'!N81+'I.Input Data'!N82+'I.Input Data'!N83) -> 10000 | P15: =+'I.Input Data'!$M$42*('I.Input Data'!O81+'I.Input Data'!O82+'I.Input Data'!O83) -> 20500 | Q15: =+'I.Input Data'!$M$42*('I.Input Data'!P81+'I.Input Data'!P82+'I.Input Data'!P83) -> 22200 | R15: =+'I.Input Data'!$M$42*('I.Input Data'!Q81+'I.Input Data'!Q82+'I.Input Data'!Q83) -> 20400 | S15: =+'I.Input Data'!$M$42*('I.Input Data'!R81+'I.Input Data'!R82+'I.Input Data'!R83) -> 50400 | T15: =+'I.Input Data'!$M$42*('I.Input Data'!S81+'I.Input Data'!S82+'I.Input Data'!S83) -> 60400 | U15: =+'I.Input Data'!$M$42*('I.Input Data'!T81+'I.Input Data'!T82+'I.Input Data'!T83) -> 65400 | V15: =+'I.Input Data'!$M$42*('I.Input Data'!U81+'I.Input Data'!U82+'I.Input Data'!U83) -> 80400 | W15: =+'I.Input Data'!$M$42*('I.Input Data'!V81+'I.Input Data'!V82+'I.Input Data'!V83) -> 45400 | X15: =+'I.Input Data'!$M$42*('I.Input Data'!W81+'I.Input Data'!W82+'I.Input Data'!W83) -> 45400
B16: Cost of Sales | C16: =+'I.Input Data'!K43 -> Cost Element N.1 | N16: =+'I.Input Data'!M43 -> 0 | O16: =+'I.Input Data'!N43 -> 0 | P16: =+'I.Input Data'!O43 -> 0 | Q16: =+'I.Input Data'!P43 -> 0 | R16: =+'I.Input Data'!Q43 -> 0 | S16: =+'I.Input Data'!R43 -> 0 | T16: =+'I.Input Data'!S43 -> 0 | U16: =+'I.Input Data'!T43 -> 0 | V16: =+'I.Input Data'!U43 -> 0 | W16: =+'I.Input Data'!V43 -> 0 | X16: =+'I.Input Data'!W43 -> 0
C17: =+'I.Input Data'!K44 -> Cost Element N.2 | N17: =+'I.Input Data'!M44 -> 0 | O17: =+'I.Input Data'!N44 -> 0 | P17: =+'I.Input Data'!O44 -> 0 | Q17: =+'I.Input Data'!P44 -> 0 | R17: =+'I.Input Data'!Q44 -> 0 | S17: =+'I.Input Data'!R44 -> 0 | T17: =+'I.Input Data'!S44 -> 0 | U17: =+'I.Input Data'!T44 -> 0 | V17: =+'I.Input Data'!U44 -> 0 | W17: =+'I.Input Data'!V44 -> 0 | X17: =+'I.Input Data'!W44 -> 0
C18: =+'I.Input Data'!K45 -> Cost Element N.3 | N18: =+'I.Input Data'!M45 -> 0 | O18: =+'I.Input Data'!N45 -> 0 | P18: =+'I.Input Data'!O45 -> 0 | Q18: =+'I.Input Data'!P45 -> 0 | R18: =+'I.Input Data'!Q45 -> 0 | S18: =+'I.Input Data'!R45 -> 0 | T18: =+'I.Input Data'!S45 -> 0 | U18: =+'I.Input Data'!T45 -> 0 | V18: =+'I.Input Data'!U45 -> 0 | W18: =+'I.Input Data'!V45 -> 0 | X18: =+'I.Input Data'!W45 -> 0
C19: =+'I.Input Data'!K46 -> Cost Element N.4 | N19: =+'I.Input Data'!M46 -> 0 | O19: =+'I.Input Data'!N46 -> 0 | P19: =+'I.Input Data'!O46 -> 0 | Q19: =+'I.Input Data'!P46 -> 0 | R19: =+'I.Input Data'!Q46 -> 0 | S19: =+'I.Input Data'!R46 -> 0 | T19: =+'I.Input Data'!S46 -> 0 | U19: =+'I.Input Data'!T46 -> 0 | V19: =+'I.Input Data'!U46 -> 0 | W19: =+'I.Input Data'!V46 -> 0 | X19: =+'I.Input Data'!W46 -> 0
B20: OPEX | C20: Sales | N20: =('I.Input Data'!M51+'I.Input Data'!M52)*'I.Input Data'!M53 -> 49440 | O20: =('I.Input Data'!N51+'I.Input Data'!N52)*'I.Input Data'!N53 -> 49440 | P20: =('I.Input Data'!O51+'I.Input Data'!O52)*'I.Input Data'!O53 -> 61800 | Q20: =('I.Input Data'!P51+'I.Input Data'!P52)*'I.Input Data'!P53 -> 77250 | R20: =('I.Input Data'!Q51+'I.Input Data'!Q52)*'I.Input Data'!Q53 -> 103000 | S20: =('I.Input Data'!R51+'I.Input Data'!R52)*'I.Input Data'!R53 -> 103000 | T20: =('I.Input Data'!S51+'I.Input Data'!S52)*'I.Input Data'!S53 -> 103000 | U20: =('I.Input Data'!T51+'I.Input Data'!T52)*'I.Input Data'!T53 -> 103000 | V20: =('I.Input Data'!U51+'I.Input Data'!U52)*'I.Input Data'!U53 -> 103000 | W20: =('I.Input Data'!V51+'I.Input Data'!V52)*'I.Input Data'!V53 -> 103000 | X20: =('I.Input Data'!W51+'I.Input Data'!W52)*'I.Input Data'!W53 -> 103000
C21: Marketing | N21: =+('I.Input Data'!M54+'I.Input Data'!M55)*'I.Input Data'!M56 -> 37500 | O21: =+('I.Input Data'!N54+'I.Input Data'!N55)*'I.Input Data'!N56 -> 37500 | P21: =+('I.Input Data'!O54+'I.Input Data'!O55)*'I.Input Data'!O56 -> 56250 | Q21: =+('I.Input Data'!P54+'I.Input Data'!P55)*'I.Input Data'!P56 -> 56250 | R21: =+('I.Input Data'!Q54+'I.Input Data'!Q55)*'I.Input Data'!Q56 -> 75000 | S21: =+('I.Input Data'!R54+'I.Input Data'!R55)*'I.Input Data'!R56 -> 75000 | T21: =+('I.Input Data'!S54+'I.Input Data'!S55)*'I.Input Data'!S56 -> 75000 | U21: =+('I.Input Data'!T54+'I.Input Data'!T55)*'I.Input Data'!T56 -> 75000 | V21: =+('I.Input Data'!U54+'I.Input Data'!U55)*'I.Input Data'!U56 -> 75000 | W21: =+('I.Input Data'!V54+'I.Input Data'!V55)*'I.Input Data'!V56 -> 75000 | X21: =+('I.Input Data'!W54+'I.Input Data'!W55)*'I.Input Data'!W56 -> 75000
C22: Admin | N22: =+('I.Input Data'!M57+'I.Input Data'!M58)*'I.Input Data'!M59 -> 12875 | O22: =+('I.Input Data'!N57+'I.Input Data'!N58)*'I.Input Data'!N59 -> 12875 | P22: =+('I.Input Data'!O57+'I.Input Data'!O58)*'I.Input Data'!O59 -> 20600 | Q22: =+('I.Input Data'!P57+'I.Input Data'!P58)*'I.Input Data'!P59 -> 41200 | R22: =+('I.Input Data'!Q57+'I.Input Data'!Q58)*'I.Input Data'!Q59 -> 41200 | S22: =+('I.Input Data'!R57+'I.Input Data'!R58)*'I.Input Data'!R59 -> 41200 | T22: =+('I.Input Data'!S57+'I.Input Data'!S58)*'I.Input Data'!S59 -> 41200 | U22: =+('I.Input Data'!T57+'I.Input Data'!T58)*'I.Input Data'!T59 -> 41200 | V22: =+('I.Input Data'!U57+'I.Input Data'!U58)*'I.Input Data'!U59 -> 41200 | W22: =+('I.Input Data'!V57+'I.Input Data'!V58)*'I.Input Data'!V59 -> 41200 | X22: =+('I.Input Data'!W57+'I.Input Data'!W58)*'I.Input Data'!W59 -> 41200
C23: =+'I.Input Data'!K60 -> Other Facilities Cost N.1 | N23: =+'I.Input Data'!M60 -> 0 | O23: =+'I.Input Data'!N60 -> 0 | P23: =+'I.Input Data'!O60 -> 0 | Q23: =+'I.Input Data'!P60 -> 0 | R23: =+'I.Input Data'!Q60 -> 0 | S23: =+'I.Input Data'!R60 -> 0 | T23: =+'I.Input Data'!S60 -> 0 | U23: =+'I.Input Data'!T60 -> 0 | V23: =+'I.Input Data'!U60 -> 0 | W23: =+'I.Input Data'!V60 -> 0 | X23: =+'I.Input Data'!W60 -> 0
C24: =+'I.Input Data'!K61 -> Other Facilities Cost N.2 | N24: =+'I.Input Data'!M61 -> 0 | O24: =+'I.Input Data'!N61 -> 0 | P24: =+'I.Input Data'!O61 -> 0 | Q24: =+'I.Input Data'!P61 -> 0 | R24: =+'I.Input Data'!Q61 -> 0 | S24: =+'I.Input Data'!R61 -> 0 | T24: =+'I.Input Data'!S61 -> 0 | U24: =+'I.Input Data'!T61 -> 0 | V24: =+'I.Input Data'!U61 -> 0 | W24: =+'I.Input Data'!V61 -> 0 | X24: =+'I.Input Data'!W61 -> 0
C25: =+'I.Input Data'!K62 -> Other Facilities Cost N.3 | N25: =+'I.Input Data'!M62 -> 0 | O25: =+'I.Input Data'!N62 -> 0 | P25: =+'I.Input Data'!O62 -> 0 | Q25: =+'I.Input Data'!P62 -> 0 | R25: =+'I.Input Data'!Q62 -> 0 | S25: =+'I.Input Data'!R62 -> 0 | T25: =+'I.Input Data'!S62 -> 0 | U25: =+'I.Input Data'!T62 -> 0 | V25: =+'I.Input Data'!U62 -> 0 | W25: =+'I.Input Data'!V62 -> 0 | X25: =+'I.Input Data'!W62 -> 0
C26: Sat Capacity | N26: =+'I.Input Data'!M63*'I.Input Data'!$M$64 -> 42000 | O26: =+'I.Input Data'!N63*'I.Input Data'!$M$64 -> 58800 | P26: =+'I.Input Data'!O63*'I.Input Data'!$M$64 -> 75600 | Q26: =+'I.Input Data'!P63*'I.Input Data'!$M$64 -> 84000 | R26: =+'I.Input Data'!Q63*'I.Input Data'!$M$64 -> 84000 | S26: =+'I.Input Data'!R63*'I.Input Data'!$M$64 -> 84000 | T26: =+'I.Input Data'!S63*'I.Input Data'!$M$64 -> 84000 | U26: =+'I.Input Data'!T63*'I.Input Data'!$M$64 -> 84000 | V26: =+'I.Input Data'!U63*'I.Input Data'!$M$64 -> 84000 | W26: =+'I.Input Data'!V63*'I.Input Data'!$M$64 -> 84000 | X26: =+'I.Input Data'!W63*'I.Input Data'!$M$64 -> 84000
C27: =CONCATENATE(+'I.Input Data'!K69," dep.",+'I.Input Data'!$M$71,"y") -> Investment N.1 dep.5y | N27: =+'I.Input Data'!M69 -> 100000 | O27: =+'I.Input Data'!N69 -> 0 | P27: =+'I.Input Data'!O69 -> 0 | Q27: =+'I.Input Data'!P69 -> 0 | R27: =+'I.Input Data'!Q69 -> 0 | S27: =+'I.Input Data'!R69 -> 0 | T27: =+'I.Input Data'!S69 -> 0 | U27: =+'I.Input Data'!T69 -> 0 | V27: =+'I.Input Data'!U69 -> 0 | W27: =+'I.Input Data'!V69 -> 0 | X27: =+'I.Input Data'!W69 -> 0
C28: =CONCATENATE(+'I.Input Data'!K70," dep.",+'I.Input Data'!$M$71,"y") -> Investment N.2 dep.5y | N28: =+'I.Input Data'!M70 -> 0 | O28: =+'I.Input Data'!N70 -> 20000 | P28: =+'I.Input Data'!O70 -> 0 | Q28: =+'I.Input Data'!P70 -> 0 | R28: =+'I.Input Data'!Q70 -> 0 | S28: =+'I.Input Data'!R70 -> 0 | T28: =+'I.Input Data'!S70 -> 0 | U28: =+'I.Input Data'!T70 -> 0 | V28: =+'I.Input Data'!U70 -> 50000 | W28: =+'I.Input Data'!V70 -> 0 | X28: =+'I.Input Data'!W70 -> 0
C29: =CONCATENATE("Total investment ",+'I.Input Data'!$M$71,"y") -> Total investment 5y | N29: =+SUM(N27:N28) -> 100000 | O29: =+SUM(O27:O28) -> 20000 | P29: 0 | Q29: 0 | R29: 0 | S29: =+SUM(S27:S28) -> 0 | T29: 0 | U29: 0 | V29: 50000 | W29: 0 | X29: 0
C30: =CONCATENATE(+'I.Input Data'!K72," dep.",+'I.Input Data'!$M$74,"y") -> Investment N.3 dep.7y | N30: =+'I.Input Data'!M72 -> 5000 | O30: =+'I.Input Data'!N72 -> 0 | P30: =+'I.Input Data'!O72 -> 0 | Q30: =+'I.Input Data'!P72 -> 0 | R30: =+'I.Input Data'!Q72 -> 0 | S30: =+'I.Input Data'!R72 -> 0 | T30: =+'I.Input Data'!S72 -> 0 | U30: =+'I.Input Data'!T72 -> 0 | V30: =+'I.Input Data'!U72 -> 0 | W30: =+'I.Input Data'!V72 -> 0 | X30: =+'I.Input Data'!W72 -> 0
C31: =CONCATENATE(+'I.Input Data'!K73," dep.",+'I.Input Data'!$M$74,"y") -> Investment N.4 dep.7y | N31: =+'I.Input Data'!M73 -> 0 | O31: =+'I.Input Data'!N73 -> 0 | P31: =+'I.Input Data'!O73 -> 0 | Q31: =+'I.Input Data'!P73 -> 0 | R31: =+'I.Input Data'!Q73 -> 0 | S31: =+'I.Input Data'!R73 -> 0 | T31: =+'I.Input Data'!S73 -> 0 | U31: =+'I.Input Data'!T73 -> 0 | V31: =+'I.Input Data'!U73 -> 0 | W31: =+'I.Input Data'!V73 -> 0 | X31: =+'I.Input Data'!W73 -> 0
C32: =CONCATENATE("Total investment ",+'I.Input Data'!$M$74,"y") -> Total investment 7y | N32: =+SUM(N30:N31) -> 5000 | O32: =+SUM(O30:O31) -> 0 | P32: 0 | Q32: 0 | R32: 0 | S32: =+SUM(S30:S31) -> 0 | T32: 0 | U32: 0 | V32: 0 | W32: 0 | X32: 0

Sheet IV. Profit&Loss + Cash Flow
A1: IV. | B1: Stage IV - Profit & Loss and Cash Flow Statement Calculation
B3: In this worksheet the Profit and Loss (P&L) statement and a simplified version of the cash flow statement are presented. No input from your side is required except for the Cost of Capital (WACC).
B4: The Discounted Cash Flow (DCF) method is used to evaluate the project.
B5: Table 2.13 Profit & Loss and Cash Flow Statement
B6: Cost of Capital (WACC) | C6: =+'I.Input Data'!C87 -> 0.1
A7: PROFIT & LOSS | D7: Development Phase(s) | N7: =+'I.Input Data'!F11 -> 2018-01-01 | O7: Commercial Exploitation Phase
C8: Year -> | D8: =+'I.Input Data'!C35 -> -1 | E8: =+'I.Input Data'!D35 -> -1 | F8: =+'I.Input Data'!E35 -> -1 | G8: =+'I.Input Data'!F35 -> -1 | H8: =+'I.Input Data'!G35 -> -1 | I8: =+'I.Input Data'!H35 -> -1 | J8: =+'I.Input Data'!I35 -> -1 | K8: =+'I.Input Data'!J35 -> -1 | L8: =+'I.Input Data'!K35 -> 0 | M8: =+'I.Input Data'!L35 -> 1 | N8: =+'I.Input Data'!M35 -> 2 | O8: =+'I.Input Data'!N35 -> 3 | P8: =+'I.Input Data'!O35 -> 4 | Q8: =+'I.Input Data'!P35 -> 5 | R8: =+'I.Input Data'!Q35 -> 6 | S8: =+'I.Input Data'!R35 -> 7 | T8: =+'I.Input Data'!S35 -> 8 | U8: =+'I.Input Data'!T35 -> 9 | V8: =+'I.Input Data'!U35 -> 10 | W8: =+'I.Input Data'!V35 -> 11 | X8: =+'I.Input Data'!W35 -> 12
B9: Revenues | C9: =+'II. Revenues'!B16 -> Product Sales Revenue | N9: =+'II. Revenues'!D19 -> 1200 | O9: =+'II. Revenues'!E19 -> 12000 | P9: =+'II. Revenues'!F19 -> 24050 | Q9: =+'II. Revenues'!G19 -> 26440 | R9: =+'II. Revenues'!H19 -> 24040 | S9: =+'II. Revenues'!I19 -> 60040 | T9: =+'II. Revenues'!J19 -> 72040 | U9: =+'II. Revenues'!K19 -> 78040 | V9: =+'II. Revenues'!L19 -> 96040 | W9: =+'II. Revenues'!M19 -> 54040 | X9: =+'II. Revenues'!N19 -> 54040
C10: =+'II. Revenues'!B20 -> Product Installation Revenue | N10: =+'II. Revenues'!D23 -> 1500 | O10: =+'II. Revenues'!E23 -> 15000 | P10: =+'II. Revenues'!F23 -> 30100 | Q10: =+'II. Revenues'!G23 -> 33040 | R10: =+'II. Revenues'!H23 -> 30080 | S10: =+'II. Revenues'!I23 -> 75080 | T10: =+'II. Revenues'!J23 -> 90080 | U10: =+'II. Revenues'!K23 -> 97580 | V10: =+'II. Revenues'!L23 -> 120080 | W10: =+'II. Revenues'!M23 -> 67580 | X10: =+'II. Revenues'!N23 -> 67580
C11: =+'II. Revenues'!B24 -> Product Service Fee Revenue | N11: =+'II. Revenues'!D27 -> 20000 | O11: =+'II. Revenues'!E27 -> 218000 | P11: =+'II. Revenues'!F27 -> 596300 | Q11: =+'II. Revenues'!G27 -> 976710 | R11: =+'II. Revenues'!H27 -> 1279119 | S11: =+'II. Revenues'!I27 -> 2151287.1 | T11: =+'II. Revenues'!J27 -> 3136238.39 | U11: =+'II. Revenues'!K27 -> 4122694.551 | V11: =+'II. Revenues'!L27 -> 5310505.096 | W11: =+'II. Revenues'!M27 -> 5679534.586 | X11: =+'II. Revenues'!N27 -> 6011661.128
C12: =+'II. Revenues'!B28 -> Total Revenues | N12: =+SUM(N9:N11) -> 22700 | O12: =+SUM(O9:O11) -> 245000 | P12: 650450 | Q12: 1036190 | R12: 1333239 | S12: 2286407.1 | T12: 3298358.39 | U12: 4298314.551 | V12: 5526625.096 | W12: 5801154.586 | X12: 6133281.128
B13: Expenses OPEX | C13: =+'III. Costs'!B16 -> Cost of Sales | N13: =+SUM('III. Costs'!N15:N19) -> 1000 | O13: =+SUM('III. Costs'!O15:O19) -> 10000 | P13: =+SUM('III. Costs'!P15:P19) -> 20500 | Q13: =+SUM('III. Costs'!Q15:Q19) -> 22200 | R13: =+SUM('III. Costs'!R15:R19) -> 20400 | S13: =+SUM('III. Costs'!S15:S19) -> 50400 | T13: =+SUM('III. Costs'!T15:T19) -> 60400 | U13: =+SUM('III. Costs'!U15:U19) -> 65400 | V13: =+SUM('III. Costs'!V15:V19) -> 80400 | W13: =+SUM('III. Costs'!W15:W19) -> 45400 | X13: =+SUM('III. Costs'!X15:X19) -> 45400
C14: =+'III. Costs'!C20 -> Sales | N14: =+'III. Costs'!N20 -> 49440 | O14: =+'III. Costs'!O20 -> 49440 | P14: =+'III. Costs'!P20 -> 61800 | Q14: =+'III. Costs'!Q20 -> 77250 | R14: =+'III. Costs'!R20 -> 103000 | S14: =+'III. Costs'!S20 -> 103000 | T14: =+'III. Costs'!T20 -> 103000 | U14: =+'III. Costs'!U20 -> 103000 | V14: =+'III. Costs'!V20 -> 103000 | W14: =+'III. Costs'!W20 -> 103000 | X14: =+'III. Costs'!X20 -> 103000
C15: =+'III. Costs'!C21 -> Marketing | N15: =+'III. Costs'!N21 -> 37500 | O15: =+'III. Costs'!O21 -> 37500 | P15: =+'III. Costs'!P21 -> 56250 | Q15: =+'III. Costs'!Q21 -> 56250 | R15: =+'III. Costs'!R21 -> 75000 | S15: =+'III. Costs'!S21 -> 75000 | T15: =+'III. Costs'!T21 -> 75000 | U15: =+'III. Costs'!U21 -> 75000 | V15: =+'III. Costs'!V21 -> 75000 | W15: =+'III. Costs'!W21 -> 75000 | X15: =+'III. Costs'!X21 -> 75000
C16: =+'III. Costs'!C22 -> Admin | N16: =+'III. Costs'!N22 -> 12875 | O16: =+'III. Costs'!O22 -> 12875 | P16: =+'III. Costs'!P22 -> 20600 | Q16: =+'III. Costs'!Q22 -> 41200 | R16: =+'III. Costs'!R22 -> 41200 | S16: =+'III. Costs'!S22 -> 41200 | T16: =+'III. Costs'!T22 -> 41200 | U16: =+'III. Costs'!U22 -> 41200 | V16: =+'III. Costs'!V22 -> 41200 | W16: =+'III. Costs'!W22 -> 41200 | X16: =+'III. Costs'!X22 -> 41200
C17: Facilities | N17: =+'III. Costs'!N23+'III. Costs'!N24+'III. Costs'!N25 -> 0 | O17: =+'III. Costs'!O23+'III. Costs'!O24+'III. Costs'!O25 -> 0 | P17: =+'III. Costs'!P23+'III. Costs'!P24+'III. Costs'!P25 -> 0 | Q17: =+'III. Costs'!Q23+'III. Costs'!Q24+'III. Costs'!Q25 -> 0 | R17: =+'III. Costs'!R23+'III. Costs'!R24+'III. Costs'!R25 -> 0 | S17: =+'III. Costs'!S23+'III. Costs'!S24+'III. Costs'!S25 -> 0 | T17: =+'III. Costs'!T23+'III. Costs'!T24+'III. Costs'!T25 -> 0 | U17: =+'III. Costs'!U23+'III. Costs'!U24+'III. Costs'!U25 -> 0 | V17: =+'III. Costs'!V23+'III. Costs'!V24+'III. Costs'!V25 -> 0 | W17: =+'III. Costs'!W23+'III. Costs'!W24+'III. Costs'!W25 -> 0 | X17: =+'III. Costs'!X23+'III. Costs'!X24+'III. Costs'!X25 -> 0
C18: =+'III. Costs'!C26 -> Sat Capacity | N18: =+'III. Costs'!N26 -> 42000 | O18: =+'III. Costs'!O26 -> 58800 | P18: =+'III. Costs'!P26 -> 75600 | Q18: =+'III. Costs'!Q26 -> 84000 | R18: =+'III. Costs'!R26 -> 84000 | S18: =+'III. Costs'!S26 -> 84000 | T18: =+'III. Costs'!T26 -> 84000 | U18: =+'III. Costs'!U26 -> 84000 | V18: =+'III. Costs'!V26 -> 84000 | W18: =+'III. Costs'!W26 -> 84000 | X18: =+'III. Costs'!X26 -> 84000
B19: Expenses R&D | C19: Cost of Development Phases | D19: =+'III. Costs'!D7+'III. Costs'!D8+'III. Costs'!D9+'III. Costs'!D10 -> 0 | E19: =+'III. Costs'!E7+'III. Costs'!E8+'III. Costs'!E9+'III. Costs'!E10 -> 0 | F19: =+'III. Costs'!F7+'III. Costs'!F8+'III. Costs'!F9+'III. Costs'!F10 -> 0 | G19: =+'III. Costs'!G7+'III. Costs'!G8+'III. Costs'!G9+'III. Costs'!G10 -> 0 | H19: =+'III. Costs'!H7+'III. Costs'!H8+'III. Costs'!H9+'III. Costs'!H10 -> 0 | I19: =+'III. Costs'!I7+'III. Costs'!I8+'III. Costs'!I9+'III. Costs'!I10 -> 0 | J19: =+'III. Costs'!J7+'III. Costs'!J8+'III. Costs'!J9+'III. Costs'!J10 -> 0 | K19: =+'III. Costs'!K7+'III. Costs'!K8+'III. Costs'!K9+'III. Costs'!K10 -> 0 | L19: =+'III. Costs'!L7+'III. Costs'!L8+'III. Costs'!L9+'III. Costs'!L10 -> 1351162.791 | M19: =+'III. Costs'!M7+'III. Costs'!M8+'III. Costs'!M9+'III. Costs'!M10 -> 948837.2093 | N19: =+'III. Costs'!N7+'III. Costs'!N8+'III. Costs'!N9+'III. Costs'!N10 -> 0 | O19: =+'III. Costs'!O7+'III. Costs'!O8+'III. Costs'!O9+'III. Costs'!O10 -> 0 | P19: =+'III. Costs'!P7+'III. Costs'!P8+'III. Costs'!P9+'III. Costs'!P10 -> 0 | Q19: =+'III. Costs'!Q7+'III. Costs'!Q8+'III. Costs'!Q9+'III. Costs'!Q10 -> 0 | R19: =+'III. Costs'!R7+'III. Costs'!R8+'III. Costs'!R9+'III. Costs'!R10 -> 0 | S19: =+'III. Costs'!S7+'III. Costs'!S8+'III. Costs'!S9+'III. Costs'!S10 -> 0 | T19: =+'III. Costs'!T7+'III. Costs'!T8+'III. Costs'!T9+'III. Costs'!T10 -> 0 | U19: =+'III. Costs'!U7+'III. Costs'!U8+'III. Costs'!U9+'III. Costs'!U10 -> 0 | V19: =+'III. Costs'!V7+'III. Costs'!V8+'III. Costs'!V9+'III. Costs'!V10 -> 0 | W19: =+'III. Costs'!W7+'III. Costs'!W8+'III. Costs'!W9+'III. Costs'!W10 -> 0 | X19: =+'III. Costs'!X7+'III. Costs'!X8+'III. Costs'!X9+'III. Costs'!X10 -> 0
C20: ESA Financial support | D20: =-('III. Costs'!D11+'III. Costs'!D12+'III. Costs'!D13+'III. Costs'!D14) -> 0 | E20: =-('III. Costs'!E11+'III. Costs'!E12+'III. Costs'!E13+'III. Costs'!E14) -> 0 | F20: =-('III. Costs'!F11+'III. Costs'!F12+'III. Costs'!F13+'III. Costs'!F14) -> 0 | G20: =-('III. Costs'!G11+'III. Costs'!G12+'III. Costs'!G13+'III. Costs'!G14) -> 0 | H20: =-('III. Costs'!H11+'III. Costs'!H12+'III. Costs'!H13+'III. Costs'!H14) -> 0 | I20: =-('III. Costs'!I11+'III. Costs'!I12+'III. Costs'!I13+'III. Costs'!I14) -> 0 | J20: =-('III. Costs'!J11+'III. Costs'!J12+'III. Costs'!J13+'III. Costs'!J14) -> 0 | K20: =-('III. Costs'!K11+'III. Costs'!K12+'III. Costs'!K13+'III. Costs'!K14) -> 0 | L20: =-('III. Costs'!L11+'III. Costs'!L12+'III. Costs'!L13+'III. Costs'!L14) -> -1138372.093 | M20: =-('III. Costs'!M11+'III. Costs'!M12+'III. Costs'!M13+'III. Costs'!M14) -> -511627.907 | N20: =-('III. Costs'!N11+'III. Costs'!N12+'III. Costs'!N13+'III. Costs'!N14) -> 0 | O20: =-('III. Costs'!O11+'III. Costs'!O12+'III. Costs'!O13+'III. Costs'!O14) -> 0 | P20: =-('III. Costs'!P11+'III. Costs'!P12+'III. Costs'!P13+'III. Costs'!P14) -> 0 | Q20: =-('III. Costs'!Q11+'III. Costs'!Q12+'III. Costs'!Q13+'III. Costs'!Q14) -> 0 | R20: =-('III. Costs'!R11+'III. Costs'!R12+'III. Costs'!R13+'III. Costs'!R14) -> 0 | S20: =-('III. Costs'!S11+'III. Costs'!S12+'III. Costs'!S13+'III. Costs'!S14) -> 0 | T20: =-('III. Costs'!T11+'III. Costs'!T12+'III. Costs'!T13+'III. Costs'!T14) -> 0 | U20: =-('III. Costs'!U11+'III. Costs'!U12+'III. Costs'!U13+'III. Costs'!U14) -> 0 | V20: =-('III. Costs'!V11+'III. Costs'!V12+'III. Costs'!V13+'III. Costs'!V14) -> 0 | W20: =-('III. Costs'!W11+'III. Costs'!W12+'III. Costs'!W13+'III. Costs'!W14) -> 0 | X20: =-('III. Costs'!X11+'III. Costs'!X12+'III. Costs'!X13+'III. Costs'!X14) -> 0
C21: R&D (net) | D21: =+D19-D20 -> 0 | E21: =+E19-E20 -> 0 | F21: 0 | G21: 0 | H21: 0 | I21: 0 | J21: =+J19+J20 -> 0 | K21: =+K19+K20 -> 0 | L21: 212790.6977 | M21: 437209.3023 | N21: 0 | O21: =+O19+O20 -> 0 | P21: 0 | Q21: 0 | R21: 0 | S21: 0 | T21: 0 | U21: 0 | V21: 0 | W21: 0 | X21: 0
B22: Total Expenses | C22: Total Expenses (w/o ESA) | D22: =+SUM(D13:D18)+D19 -> 0 | E22: =+SUM(E13:E18)+E19 -> 0 | F22: 0 | G22: 0 | H22: 0 | I22: 0 | J22: 0 | K22: 0 | L22: 1351162.791 | M22: 948837.2093 | N22: =+SUM(N13:N18)+N19 -> 142815 | O22: 168615 | P22: 234750 | Q22: 280900 | R22: 323600 | S22: 353600 | T22: 363600 | U22: 368600 | V22: 383600 | W22: 348600 | X22: 348600
C23: Total Expenses (with ESA) | D23: =+SUM(D13:D18)+D21 -> 0 | E23: =+SUM(E13:E18)+E21 -> 0 | F23: 0 | G23: 0 | H23: 0 | I23: 0 | J23: 0 | K23: 0 | L23: 212790.6977 | M23: 437209.3023 | N23: =+SUM(N13:N18)+N21 -> 142815 | O23: 168615 | P23: 234750 | Q23: 280900 | R23: 323600 | S23: 353600 | T23: 363600 | U23: 368600 | V23: 383600 | W23: 348600 | X23: 348600
B24: EBITDA (with ESA support) | C24: EBITDA | D24: =+D12-D23 -> 0 | E24: 0 | F24: 0 | G24: 0 | H24: 0 | I24: 0 | J24: =+J12-J23 -> 0 | K24: =+K12-K23 -> 0 | L24: =+L12-L23 -> -212790.6977 | M24: =+M12-M23 -> -437209.3023 | N24: -120115 | O24: =+O12-O23 -> 76385 | P24: 415700 | Q24: 755290 | R24: 1009639 | S24: 1932807.1 | T24: 2934758.39 | U24: 3929714.551 | V24: 5143025.096 | W24: 5452554.586 | X24: 5784681.128
C25: EBITDA Margin | D25: =IF(D12=0,0,D24/D12) -> 0 | E25: =IF(E12=0,0,E24/E12) -> 0 | F25: 0 | G25: 0 | H25: 0 | I25: 0 | J25: 0 | K25: 0 | L25: 0 | M25: 0 | N25: -5.291409692 | O25: =IF(O12=0,0,O24/O12) -> 0.3117755102 | P25: 0.6390960105 | Q25: 0.728910721 | R25: 0.7572828278 | S25: 0.8453468763 | T25: 0.8897633438 | U25: 0.914245457 | V25: 0.9305905515 | W25: 0.9399085139 | X25: 0.9431625597
B26: CAPEX | C26: Depreciation | N26: =+Depreciation!F61 -> 20714.28571 | O26: =+Depreciation!G61 -> 24714.28571 | P26: =+Depreciation!H61 -> 24714.28571 | Q26: =+Depreciation!I61 -> 24714.28571 | R26: =+Depreciation!J61 -> 24714.28571 | S26: =+Depreciation!K61 -> 4714.285714 | T26: =+Depreciation!L61 -> 714.2857143 | U26: =+Depreciation!M61 -> 0 | V26: =+Depreciation!N61 -> 10000 | W26: =+Depreciation!O61 -> 10000 | X26: =+Depreciation!P61 -> 10000
B27: Operating Profit (EBIT) (with ESA support) | C27: EBIT | D27: =+D24-D26 -> 0 | E27: =+E24-E26 -> 0 | F27: 0 | G27: 0 | H27: 0 | I27: 0 | J27: 0 | K27: 0 | L27: -212790.6977 | M27: -437209.3023 | N27: -140829.2857 | O27: =+O24-O26 -> 51670.71429 | P27: 390985.7143 | Q27: 730575.7143 | R27: 984924.7143 | S27: 1928092.814 | T27: 2934044.104 | U27: 3929714.551 | V27: 5133025.096 | W27: 5442554.586 | X27: 5774681.128
C28: EBIT Margin | D28: =IF(D12=0,0,D27/D12) -> 0 | E28: =IF(E12=0,0,E27/E12) -> 0 | F28: 0 | G28: 0 | H28: 0 | I28: 0 | J28: 0 | K28: 0 | L28: 0 | M28: 0 | N28: -6.203933291 | O28: =IF(O12=0,0,O27/O12) -> 0.2109008746 | P28: 0.6011003371 | Q28: 0.7050596071 | R28: 0.738745802 | S28: 0.8432850013 | T28: 0.8895467858 | U28: 0.914245457 | V28: 0.928781129 | W28: 0.9381847192 | X28: 0.941532111
A29: PRELIMINARY SIMPLIFIED CASH FLOW | C29: plus Depreciation | D29: =+D27+D26 -> 0 | E29: 0 | F29: 0 | G29: 0 | H29: 0 | I29: 0 | J29: 0 | K29: 0 | L29: -212790.6977 | M29: -437209.3023 | N29: =+N27+N26 -> -120115 | O29: =+O27+O26 -> 76385 | P29: 415700 | Q29: 755290 | R29: 1009639 | S29: 1932807.1 | T29: 2934758.39 | U29: 3929714.551 | V29: 5143025.096 | W29: 5452554.586 | X29: 5784681.128
C30: less total CAPEX | N30: =-('III. Costs'!N29+'III. Costs'!N32) -> -105000 | O30: =-('III. Costs'!O29+'III. Costs'!O32) -> -20000 | P30: =-('III. Costs'!P29+'III. Costs'!P32) -> 0 | Q30: =-('III. Costs'!Q29+'III. Costs'!Q32) -> 0 | R30: =-('III. Costs'!R29+'III. Costs'!R32) -> 0 | S30: =-('III. Costs'!S29+'III. Costs'!S32) -> 0 | T30: =-('III. Costs'!T29+'III. Costs'!T32) -> 0 | U30: =-('III. Costs'!U29+'III. Costs'!U32) -> 0 | V30: =-('III. Costs'!V29+'III. Costs'!V32) -> -50000 | W30: =-('III. Costs'!W29+'III. Costs'!W32) -> 0 | X30: =-('III. Costs'!X29+'III. Costs'!X32) -> 0
C31: less change in working capital | N31: =-(N12-M12)*0.05 -> -1135 | O31: =-(O12-N12)*0.05 -> -11115 | P31: -20272.5 | Q31: -19287 | R31: -14852.45 | S31: -47658.405 | T31: -50597.5645 | U31: -49997.80805 | V31: -61415.52724 | W31: -13726.47452 | X31: -16606.32707
B32: With ESA Financial Support | C32: Free Cash Flow with ESA | D32: =+D29+D30+D31 -> 0 | E32: =+E29+E30+E31 -> 0 | F32: =+F29+F30+F31 -> 0 | G32: =+G29+G30+G31 -> 0 | H32: =+H29+H30+H31 -> 0 | I32: =+I29+I30+I31 -> 0 | J32: =+J29+J30+J31 -> 0 | K32: =+K29+K30+K31 -> 0 | L32: =+L29+L30+L31 -> -212790.6977 | M32: =+M29+M30+M31 -> -437209.3023 | N32: -226250 | O32: =+O29+O30+O31 -> 45270 | P32: 395427.5 | Q32: 736003 | R32: 994786.55 | S32: 1885148.695 | T32: 2884160.826 | U32: 3879716.743 | V32: 5031609.569 | W32: 5438828.112 | X32: 5768074.801
C33: Cumulative Free Cash Flow | D33: =+D32 -> 0 | E33: =+E32+D33 -> 0 | F33: =+F32+E33 -> 0 | G33: 0 | H33: 0 | I33: 0 | J33: 0 | K33: 0 | L33: -212790.6977 | M33: -650000 | N33: -876250 | O33: =+O32+N33 -> -830980 | P33: =+P32+O33 -> -435552.5 | Q33: =+Q32+P33 -> 300450.5 | R33: =+R32+Q33 -> 1295237.05 | S33: =+S32+R33 -> 3180385.745 | T33: =+T32+S33 -> 6064546.571 | U33: =+U32+T33 -> 9944263.313 | V33: =+V32+U33 -> 14975872.88 | W33: =+W32+V33 -> 20414700.99 | X33: =+X32+W33 -> 26182775.79
C34: Discounted Cash Flow with ESA | D34: =IF((D8=-1),0,+(D32/(1+$C$6)^(D$8+1))) -> 0 | E34: 0 | F34: 0 | G34: 0 | H34: 0 | I34: 0 | J34: 0 | K34: 0 | L34: =IF((L8=-1),0,+(L32/(1+$C$6)^(L$8+1))) -> -193446.0888 | M34: =IF((M8=-1),0,+(M32/(1+$C$6)^(M$8+1))) -> -361330.0019 | N34: =IF((N8=-1),0,+(N32/(1+$C$6)^(N$8+1))) -> -169984.9737 | O34: 30920.01912 | P34: 245529.3665 | Q34: 415454.5059 | R34: 510482.794 | S34: 879435.779 | T34: 1223165.737 | U34: 1495798.755 | V34: 1763548.458 | W34: 1732978.249 | X34: =IF((X8=-1),0,+(X32/(1+$C$5)^X$8)) -> 5768074.801
B35: Without ESA Financial Support | C35: Free Cash Flow without ESA | D35: =+D29+D30+D31+D20 -> 0 | E35: 0 | F35: 0 | G35: 0 | H35: 0 | I35: 0 | J35: 0 | K35: 0 | L35: =+L29+L30+L31+L20 -> -1351162.791 | M35: =+M29+M30+M31+M20 -> -948837.2093 | N35: -226250 | O35: =+O29+O30+O31+O20 -> 45270 | P35: 395427.5 | Q35: 736003 | R35: 994786.55 | S35: 1885148.695 | T35: 2884160.826 | U35: 3879716.743 | V35: 5031609.569 | W35: 5438828.112 | X35: 5768074.801
C36: Cumulative Free Cash Flow without ESA | D36: =+D35 -> 0 | E36: =+D36+E35 -> 0 | F36: =+E36+F35 -> 0 | G36: 0 | H36: 0 | I36: 0 | J36: 0 | K36: 0 | L36: -1351162.791 | M36: -2300000 | N36: -2526250 | O36: =+N36+O35 -> -2480980 | P36: =+O36+P35 -> -2085552.5 | Q36: =+P36+Q35 -> -1349549.5 | R36: =+Q36+R35 -> -354762.95 | S36: =+R36+S35 -> 1530385.745 | T36: =+S36+T35 -> 4414546.571 | U36: =+T36+U35 -> 8294263.313 | V36: =+U36+V35 -> 13325872.88 | W36: =+V36+W35 -> 18764700.99 | X36: =+W36+X35 -> 24532775.79
C37: Discounted Cash Flow without ESA | D37: =IF((D8=-1),0,+(D35/(1+$C$6)^(D$8+1))) -> 0 | E37: 0 | F37: 0 | G37: 0 | H37: 0 | I37: 0 | J37: 0 | K37: 0 | L37: =IF((L8=-1),0,+(L35/(1+$C$6)^(L$8+1))) -> -1228329.81 | M37: =IF((M8=-1),0,+(M35/(1+$C$6)^(M$8+1))) -> -784162.9829 | N37: -169984.9737 | O37: 30920.01912 | P37: 245529.3665 | Q37: 415454.5059 | R37: 510482.794 | S37: 879435.779 | T37: 1223165.737 | U37: 1495798.755 | V37: 1763548.458 | W37: 1732978.249 | X37: =IF((X8=-1),0,+(X35/(1+$C$5)^X$8)) -> 5768074.801
L42: Table 2.14 Financial Indicators with and without ESA Support
R45: WITH ESA
R46: Pay Back | S46: =CONCATENATE("year ",COUNTIF(INDIRECT(SUPPORT!$D$33),"<0")) -> year 5
R47: IRR | S47: =IF(SUM(INDIRECT(SUPPORT!$D$34))=0,0,IRR(INDIRECT(SUPPORT!$D$34))) -> 0.5507154551
R48: NPV | S48: =NPV($C$6,INDIRECT(SUPPORT!$D$34)) -> 7572552.599
R70: WITHOUT ESA
R71: Pay Back | S71: =CONCATENATE("year ",COUNTIF(INDIRECT(SUPPORT!$D$28),"<0")) -> year 7
R72: IRR | S72: =IF(SUM(INDIRECT(SUPPORT!$D$29))=0,0,IRR(INDIRECT(SUPPORT!$D$29))) -> 0.3028337293
R73: NPV | S73: =NPV($C$6,INDIRECT(SUPPORT!$D$29)) -> 6114835.898

Sheet Depreciation
B1: Depreciation Calculation
B3: This worksheet is used to calculate capital depreciation based on the data provided in the "III. Costs" worksheet.
B4: Straight line depreciation is calculated using the "Lifetime" defined in the "III-Costs" worksheet.
D7: Lifetime | E7: Depr. Rate
D8: =+'I.Input Data'!M71 -> 5 | E8: =1/D8 -> 0.2 | F8: =+'I.Input Data'!F11 -> 2018-01-01 | G8: Commercial Exploitation Phase
F9: 0 | G9: 1 | H9: 2 | I9: 3 | J9: 4 | K9: 5 | L9: 6 | M9: 7 | N9: 8 | O9: 9 | P9: 10 | Q9: =+P9+1 -> 11 | R9: 12 | S9: 13 | T9: 14 | U9: 15
C10: =+'III. Costs'!C29 -> Total investment 5y | F10: =+'III. Costs'!N29 -> 100000 | G10: =+'III. Costs'!O29 -> 20000 | H10: =+'III. Costs'!P29 -> 0 | I10: =+'III. Costs'!Q29 -> 0 | J10: =+'III. Costs'!R29 -> 0 | K10: =+'III. Costs'!S29 -> 0 | L10: =+'III. Costs'!T29 -> 0 | M10: =+'III. Costs'!U29 -> 0 | N10: =+'III. Costs'!V29 -> 50000 | O10: =+'III. Costs'!W29 -> 0 | P10: =+'III. Costs'!X29 -> 0
C11: Cumulative CAPEX (at Start of the Year) | F11: =+F10 -> 100000 | G11: =+G10+F11 -> 120000 | H11: =+G11+H10 -> 120000 | I11: 120000 | J11: 120000 | K11: 120000 | L11: 120000 | M11: 120000 | N11: 170000 | O11: 170000 | P11: 170000 | Q11: 170000 | R11: 170000 | S11: 170000 | T11: 170000 | U11: 170000
D12: =+F9 -> 0 | E12: =+F10 -> 100000 | F12: =IF(F$9=$D12,$E12/$D$8,IF(F$9>=$D12+$D$8,0,IF(F$9<$D12,0,$E12/$D$8))) -> 20000 | G12: 20000 | H12: 20000 | I12: 20000 | J12: 20000 | K12: 0 | L12: 0 | M12: 0 | N12: 0 | O12: 0 | P12: 0 | Q12: 0 | R12: 0 | S12: 0 | T12: 0 | U12: 0
D13: =+G9 -> 1 | E13: =+G10 -> 20000 | F13: 0 | G13: 4000 | H13: 4000 | I13: 4000 | J13: 4000 | K13: 4000 | L13: 0 | M13: 0 | N13: 0 | O13: 0 | P13: 0 | Q13: 0 | R13: 0 | S13: 0 | T13: 0 | U13: 0
D14: =+H9 -> 2 | E14: =+H10 -> 0 | F14: 0 | G14: 0 | H14: 0 | I14: 0 | J14: 0 | K14: 0 | L14: 0 | M14: 0 | N14: 0 | O14: 0 | P14: 0 | Q14: 0 | R14: 0 | S14: 0 | T14: 0 | U14: 0
D15: =+I9 -> 3 | E15: =+I10 -> 0 | F15: 0 | G15: 0 | H15: 0 | I15: 0 | J15: 0 | K15: 0 | L15: 0 | M15: 0 | N15: 0 | O15: 0 | P15: 0 | Q15: 0 | R15: 0 | S15: 0 | T15: 0 | U15: 0
D16: =+J9 -> 4 | E16: =+J10 -> 0 | F16: 0 | G16: 0 | H16: 0 | I16: 0 | J16: 0 | K16: 0 | L16: 0 | M16: 0 | N16: 0 | O16: 0 | P16: 0 | Q16: 0 | R16: 0 | S16: 0 | T16: 0 | U16: 0
D17: =+K9 -> 5 | E17: =+K10 -> 0 | F17: 0 | G17: 0 | H17: 0 | I17: 0 | J17: 0 | K17: 0 | L17: 0 | M17: 0 | N17: 0 | O17: 0 | P17: 0 | Q17: 0 | R17: 0 | S17: 0 | T17: 0 | U17: 0
D18: =+L9 -> 6 | E18: =+L10 -> 0 | F18: 0 | G18: 0 | H18: 0 | I18: 0 | J18: 0 | K18: 0 | L18: 0 | M18: 0 | N18: 0 | O18: 0 | P18: 0 | Q18: 0 | R18: 0 | S18: 0 | T18: 0 | U18: 0
D19: =+M9 -> 7 | E19: =+M10 -> 0 | F19: 0 | G19: 0 | H19: 0 | I19: 0 | J19: 0 | K19: 0 | L19: 0 | M19: 0 | N19: 0 | O19: 0 | P19: 0 | Q19: 0 | R19: 0 | S19: 0 | T19: 0 | U19: 0
D20: =+N9 -> 8 | E20: =+N10 -> 50000 | F20: 0 | G20: 0 | H20: 0 | I20: 0 | J20: 0 | K20: 0 | L20: 0 | M20: 0 | N20: 10000 | O20: 10000 | P20: 10000 | Q20: 10000 | R20: 10000 | S20: 0 | T20: 0 | U20: 0
D21: =+O9 -> 9 | E21: =+O10 -> 0 | F21: 0 | G21: 0 | H21: 0 | I21: 0 | J21: 0 | K21: 0 | L21: 0 | M21: 0 | N21: 0 | O21: 0 | P21: 0 | Q21: 0 | R21: 0 | S21: 0 | T21: 0 | U21: 0
D22: =+P9 -> 10 | E22: =+P10 -> 0 | F22: =IF(F$9=$D22,$E22/$D$8,IF(F$9>=$D22+$D$8,0,IF(F$9<$D22,0,$E22/$D$8))) -> 0 | G22: 0 | H22: 0 | I22: 0 | J22: 0 | K22: 0 | L22: 0 | M22: 0 | N22: 0 | O22: 0 | P22: 0 | Q22: 0 | R22: 0 | S22: 0 | T22: 0 | U22: 0
D23: =+Q9 -> 11 | E23: =+Q10 -> 0 | F23: 0 | G23: 0 | H23: 0 | I23: 0 | J23: 0 | K23: 0 | L23: 0 | M23: 0 | N23: 0 | O23: 0 | P23: 0 | Q23: 0 | R23: 0 | S23: 0 | T23: 0 | U23: 0
D24: =+R9 -> 12 | E24: =+R10 -> 0 | F24: 0 | G24: 0 | H24: 0 | I24: 0 | J24: 0 | K24: 0 | L24: 0 | M24: 0 | N24: 0 | O24: 0 | P24: 0 | Q24: 0 | R24: 0 | S24: 0 | T24: 0 | U24: 0
D25: =+S9 -> 13 | E25: =+S10 -> 0 | F25: 0 | G25: 0 | H25: 0 | I25: 0 | J25: 0 | K25: 0 | L25: 0 | M25: 0 | N25: 0 | O25: 0 | P25: 0 | Q25: 0 | R25: 0 | S25: 0 | T25: 0 | U25: 0
D26: =+T9 -> 14 | E26: =+T10 -> 0 | F26: 0 | G26: 0 | H26: 0 | I26: 0 | J26: 0 | K26: 0 | L26: 0 | M26: 0 | N26: 0 | O26: 0 | P26: 0 | Q26: 0 | R26: 0 | S26: 0 | T26: 0 | U26: 0
D27: =+U9 -> 15 | E27: =+U10 -> 0 | F27: 0 | G27: 0 | H27: 0 | I27: 0 | J27: 0 | K27: 0 | L27: 0 | M27: 0 | N27: 0 | O27: 0 | P27: 0 | Q27: 0 | R27: 0 | S27: 0 | T27: 0 | U27: 0
C28: Book Value (at End of the Year) | F28: =IF(F$9=$D28,$E28/$D$8,IF(F$9>=$D28+$D$8,0,IF(F$9<$D28,0,$E28/$D$8))) -> 0 | G28: =+G11-G29 -> 76000 | H28: =+H11-H29 -> 52000 | I28: 28000 | J28: 4000 | K28: 0 | L28: 0 | M28: 0 | N28: 40000 | O28: 30000 | P28: 20000 | Q28: 10000 | R28: 0 | S28: 0 | T28: 0 | U28: 0
C29: Cumulative Depreciation | G29: =+G30+F30 -> 44000 | H29: =+H30+G29 -> 68000 | I29: 92000 | J29: 116000 | K29: 120000 | L29: 120000 | M29: 120000 | N29: 130000 | O29: 140000 | P29: 150000 | Q29: 160000 | R29: 170000 | S29: 170000 | T29: 170000 | U29: 170000
C30: Depreciation | F30: =SUM(F12:F29) -> 20000 | G30: =SUM(G12:G27) -> 24000 | H30: 24000 | I30: 24000 | J30: 24000 | K30: 4000 | L30: 0 | M30: 0 | N30: 10000 | O30: 10000 | P30: 10000 | Q30: 10000 | R30: 10000 | S30: 0 | T30: 0 | U30: 0
D32: Lifetime | E32: Depr. Rate
D33: =+'I.Input Data'!M74 -> 7 | E33: =1/D33 -> 0.1428571429 | F33: =+'I.Input Data'!F11 -> 2018-01-01 | G33: Commercial Exploitation Phase
F34: 0 | G34: 1 | H34: 2 | I34: 3 | J34: 4 | K34: 5 | L34: 6 | M34: 7 | N34: 8 | O34: 9 | P34: 10 | Q34: =+P34+1 -> 11 | R34: =+Q34+1 -> 12 | S34: =+R34+1 -> 13 | T34: =+S34+1 -> 14 | U34: =+T34+1 -> 15
C35: =+'III. Costs'!C32 -> Total investment 7y | F35: =+'III. Costs'!N32 -> 5000 | G35: =+'III. Costs'!O32 -> 0 | H35: =+'III. Costs'!P32 -> 0 | I35: =+'III. Costs'!Q32 -> 0 | J35: =+'III. Costs'!R32 -> 0 | K35: =+'III. Costs'!S32 -> 0 | L35: =+'III. Costs'!T32 -> 0 | M35: =+'III. Costs'!U32 -> 0 | N35: =+'III. Costs'!V32 -> 0 | O35: =+'III. Costs'!W32 -> 0 | P35: =+'III. Costs'!X32 -> 0
C36: Cumulative CAPEX (at Start of the Year) | F36: =+F35 -> 5000 | G36: =+G35+F36 -> 5000 | H36: =+G36+H35 -> 5000 | I36: 5000 | J36: 5000 | K36: 5000 | L36: 5000 | M36: 5000 | N36: 5000 | O36: 5000 | P36: 5000 | Q36: 5000 | R36: 5000 | S36: 5000 | T36: 5000 | U36: 5000
D37: =+F34 -> 0 | E37: =+F36 -> 5000 | F37: =IF(F$34=$D37,$E37/$D$33,IF(F$34>=$D37+$D$33,0,IF(F$34<$D37,0,$E37/$D$33))) -> 714.2857143 | G37: 714.2857143 | H37: 714.2857143 | I37: 714.2857143 | J37: 714.2857143 | K37: 714.2857143 | L37: 714.2857143 | M37: 0 | N37: 0 | O37: 0 | P37: 0 | Q37: 0 | R37: 0 | S37: 0 | T37: 0 | U37: 0
D38: =+G34 -> 1 | E38: =+G35 -> 0 | F38: 0 | G38: 0 | H38: 0 | I38: 0 | J38: 0 | K38: 0 | L38: 0 | M38: 0 | N38: 0 | O38: 0 | P38: 0 | Q38: 0 | R38: 0 | S38: 0 | T38: 0 | U38: 0
D39: =+H34 -> 2 | E39: =+H35 -> 0 | F39: 0 | G39: 0 | H39: 0 | I39: 0 | J39: 0 | K39: 0 | L39: 0 | M39: 0 | N39: 0 | O39: 0 | P39: 0 | Q39: 0 | R39: 0 | S39: 0 | T39: 0 | U39: 0
D40: =+I34 -> 3 | E40: =+I35 -> 0 | F40: 0 | G40: 0 | H40: 0 | I40: 0 | J40: 0 | K40: 0 | L40: 0 | M40: 0 | N40: 0 | O40: 0 | P40: 0 | Q40: 0 | R40: 0 | S40: 0 | T40: 0 | U40: 0
D41: =+J34 -> 4 | E41: =+J35 -> 0 | F41: 0 | G41: 0 | H41: 0 | I41: 0 | J41: 0 | K41: 0 | L41: 0 | M41: 0 | N41: 0 | O41: 0 | P41: 0 | Q41: 0 | R41: 0 | S41: 0 | T41: 0 | U41: 0
D42: =+K34 -> 5 | E42: =+K35 -> 0 | F42: 0 | G42: 0 | H42: 0 | I42: 0 | J42: 0 | K42: 0 | L42: 0 | M42: 0 | N42: 0 | O42: 0 | P42: 0 | Q42: 0 | R42: 0 | S42: 0 | T42: 0 | U42: 0
D43: =+L34 -> 6 | E43: =+L35 -> 0 | F43: 0 | G43: 0 | H43: 0 | I43: 0 | J43: 0 | K43: 0 | L43: 0 | M43: 0 | N43: 0 | O43: 0 | P43: 0 | Q43: 0 | R43: 0 | S43: 0 | T43: 0 | U43: 0
D44: =+M34 -> 7 | E44: =+M35 -> 0 | F44: 0 | G44: 0 | H44: 0 | I44: 0 | J44: 0 | K44: 0 | L44: 0 | M44: 0 | N44: 0 | O44: 0 | P44: 0 | Q44: 0 | R44: 0 | S44: 0 | T44: 0 | U44: 0
D45: =+N34 -> 8 | E45: =+N35 -> 0 | F45: 0 | G45: 0 | H45: 0 | I45: 0 | J45: 0 | K45: 0 | L45: 0 | M45: 0 | N45: 0 | O45: 0 | P45: 0 | Q45: 0 | R45: 0 | S45: 0 | T45: 0 | U45: 0
D46: =+O34 -> 9 | E46: =+O35 -> 0 | F46: 0 | G46: 0 | H46: 0 | I46: 0 | J46: 0 | K46: 0 | L46: 0 | M46: 0 | N46: 0 | O46: 0 | P46: 0 | Q46: 0 | R46: 0 | S46: 0 | T46: 0 | U46: 0
D47: =+P34 -> 10 | E47: =+P35 -> 0 | F47: =IF(F$34=$D47,$E47/$D$33,IF(F$34>=$D47+$D$33,0,IF(F$34<$D47,0,$E47/$D$33))) -> 0 | G47: 0 | H47: 0 | I47: 0 | J47: 0 | K47: 0 | L47: 0 | M47: 0 | N47: 0 | O47: 0 | P47: 0 | Q47: 0 | R47: 0 | S47: 0 | T47: 0 | U47: 0
D48: =+Q34 -> 11 | E48: =+Q35 -> 0 | F48: 0 | G48: 0 | H48: 0 | I48: 0 | J48: 0 | K48: 0 | L48: 0 | M48: 0 | N48: 0 | O48: 0 | P48: 0 | Q48: 0 | R48: 0 | S48: 0 | T48: 0 | U48: 0
D49: =+R34 -> 12 | E49: =+R35 -> 0 | F49: 0 | G49: 0 | H49: 0 | I49: 0 | J49: 0 | K49: 0 | L49: 0 | M49: 0 | N49: 0 | O49: 0 | P49: 0 | Q49: 0 | R49: 0 | S49: 0 | T49: 0 | U49: 0
D50: =+S34 -> 13 | E50: =+S35 -> 0 | F50: 0 | G50: 0 | H50: 0 | I50: 0 | J50: 0 | K50: 0 | L50: 0 | M50: 0 | N50: 0 | O50: 0 | P50: 0 | Q50: 0 | R50: 0 | S50: 0 | T50: 0 | U50: 0
D51: =+T34 -> 14 | E51: =+T35 -> 0 | F51: 0 | G51: 0 | H51: 0 | I51: 0 | J51: 0 | K51: 0 | L51: 0 | M51: 0 | N51: 0 | O51: 0 | P51: 0 | Q51: 0 | R51: 0 | S51: 0 | T51: 0 | U51: 0
D52: =+U34 -> 15 | E52: =+U35 -> 0 | F52: 0 | G52: 0 | H52: 0 | I52: 0 | J52: 0 | K52: 0 | L52: 0 | M52: 0 | N52: 0 | O52: 0 | P52: 0 | Q52: 0 | R52: 0 | S52: 0 | T52: 0 | U52: 0
C53: Book Value (at End of the Year) | F53: =IF(F$9=$D53,$E53/$D$8,IF(F$9>=$D53+$D$8,0,IF(F$9<$D53,0,$E53/$D$8))) -> 0 | G53: =+G36-G54 -> 3571.428571 | H53: =+H36-H54 -> 2857.142857 | I53: =+I36-I54 -> 2142.857143 | J53: =+J36-J54 -> 1428.571429 | K53: =+K36-K54 -> 714.2857143 | L53: =+L36-L54 -> 0 | M53: =+M36-M54 -> 0 | N53: =+N36-N54 -> 0 | O53: =+O36-O54 -> 0 | P53: =+P36-P54 -> 0 | Q53: =+Q36-Q54 -> 0 | R53: =+R36-R54 -> 0 | S53: =+S36-S54 -> 0 | T53: =+T36-T54 -> 0 | U53: =+U36-U54 -> 0
C54: Cumulative Depreciation | G54: =+G55+F55 -> 1428.571429 | H54: =+H55+G54 -> 2142.857143 | I54: 2857.142857 | J54: 3571.428571 | K54: 4285.714286 | L54: 5000 | M54: 5000 | N54: 5000 | O54: 5000 | P54: 5000 | Q54: 5000 | R54: 5000 | S54: 5000 | T54: 5000 | U54: 5000
C55: Depreciation | F55: =SUM(F37:F52) -> 714.2857143 | G55: 714.2857143 | H55: 714.2857143 | I55: 714.2857143 | J55: 714.2857143 | K55: 714.2857143 | L55: 714.2857143 | M55: 0 | N55: 0 | O55: 0 | P55: 0 | Q55: 0 | R55: 0 | S55: 0 | T55: 0 | U55: 0
B61: TOTAL DEPRECIATION | F61: =+F55+F30 -> 20714.28571 | G61: 24714.28571 | H61: 24714.28571 | I61: 24714.28571 | J61: 24714.28571 | K61: 4714.285714 | L61: 714.2857143 | M61: 0 | N61: 10000 | O61: 10000 | P61: 10000 | Q61: 10000 | R61: 10000 | S61: 0 | T61: 0 | U61: 0

Sheet SUPPORT
B1: D | C1: This worksheet is used to identify the range of years to be considered for the financial indicators | H1: YES
B2: E | H2: NO
B3: F
B4: G
B5: H
B6: I
B7: J
B8: K
B9: L
B10: M
B11: N
B12: O
B13: P
B14: Q
B15: R
B16: S
B17: T
B18: U
B19: V
B20: W
B21: X
C22: Column position for Year 0 | D22: =MATCH(0,'IV. Profit&Loss + Cash Flow'!D8:X8) -> 9
C23: Column identification for Year 0 | D23: =INDEX($B$1:$B$21,$D$22) -> L
C24: Column identification for Year 1 | D24: =INDEX($B$1:$B$21,$D$22+1) -> M
C26: Year range | D26: =CONCATENATE($D$23,"8:X8") -> L8:X8
C28: Cumulative cash flow without ESA | D28: =CONCATENATE($D$23,"36:",$D$41,"36") -> L36:W36
C29: Free cash flow without ESA | D29: =CONCATENATE($D$23,"35:",$D$41,"35") -> L35:W35
C30: Free cash flow without ESA (excl. Yo) | D30: =CONCATENATE($D$24,"35:",$D$41,"35") -> M35:W35
C31: Yo cash flow without ESA | D31: =CONCATENATE($D$23,"35") -> L35
C33: Cumulative cash flow with ESA | D33: =CONCATENATE($D$23,"33:",$D$41,"33") -> L33:W33
C34: Free cash flow with ESA | D34: =CONCATENATE($D$23,"32:",$D$41,"32") -> L32:W32
C35: Free cash flow with ESA (excl. Yo) | D35: =CONCATENATE($D$24,"32:",$D$41,"32") -> M32:W32
C36: Yo cash flow with ESA | D36: =CONCATENATE($D$23,"32") -> L32
C38: Full duration in years (development + commercialisation) | D38: ='IV. Profit&Loss + Cash Flow'!N8+'I.Input Data'!I11-1 -> 11.92328767
C40: Column position for end of Commercial Phase | D40: =D22+D38 -> 20.92328767
C41: Column identification for end of Commercial Phase | D41: =INDEX($B$1:$B$21,$D$40) -> W

Sheet Change Log
A1: Version | B1: Date | C1: Notes
A2: 1.0 | B2: 2016-09-09 | C2: First version published
A3: 1.1 | B3: 2017-01-24 | C3: Corrected bug in OPEX formula (row 20, 21 and 22 from column N to X in worksheet III. Costs) with uplift added to the salary and the sum multiplied by the number of staff
A4: 1.2 | B4: 2017-01-26 | C4: Corrected bug in Input Data on rows 52, 55 and 58 from column M to U.Uplift is now calculated with the value of cells L52, L55 and L58 instead of only L52 and the formula has been changed
